Workbook

Sheet event&meetings2018
B1: Event/Mission Title | C1: Dates/location | D1: Objective | E1: actions required | F1: comments | G1: status | H1: Funding
A2: 1 | B2: GFCS International Climate Training Workshop Sahel project | C2: Ispra, JRC Italy, 16 to 20 January 2O18 | D2: _ Define and specify the Climate Service Station | E2: Prepare the presentations on ACMAD RCC and ACMAD MESA products for DRR for discussions | H2: EUMETSAT
A3: 2 | B3: Technical Visit to JRC | C3: ISPRA, Italy May 2018 | D3: _ Detail development of the CSS | E3: prepare and participate the visit | H3: JRC
A4: 3 | B4: Mission to ECMWF | C4: Reading , May 2018 | D4: _Test and Review the Climate Data Store | E4: Prepare and participate to the event | H4: ECMWF
A5: 4 | B5: Training on NFCS | C5: Niamey Niger Feb 13 to 15 2018 | D5: _train national experts on regional products and establishment/implementation of NFCS | E5: Organize the event | H5: WMO/USAID
B6: Africa-Arab Regional Platform and High-Level Meeting on Disaster Risk Reduction: 7th Africa Regional Platform & 6th High-Level Meeting on Disaster Risk Reduction | 26-30 October 2018 | Tunis, Tunisia
A7: 5 | B7: AWGDRR session | C7: Yaounde Cameroun week of sept 4 2018 | D7: take stock of progress on DRR in Africa, steer future implementation of DRR programmes for resilience in Africa | E7: Prepare a presentation on the state of climate and update emphasizing hazards outlooks, potential impacts and preparation measures | H7: AUC

Sheet schedulelambert
A1: Reference number | B1: Results &activities | C1: Responsability | H1: actual data of achievement | I1: Comments
D2: 2017-10-24 | E2: 2017-10-25 | F2: 26 Octy | G2: 2017-10-27
A3: 1 | B3: recording, Filing and Accounts
A4: 1.1
A5: 1.1.1
A6: 1.1.2
A7: 1.1.3
A8: 1.1.4
A9: 1.1.5
A10: 1.2
A12: 1.3
A14: 1.4
A17: 1.5
A19: 2 | B19: financial reporting
A20: 2.1
A25: 3 | B25: Contracts and staff management
A30: 4 | B30: administratiion, planning and reporting

Sheet adminfindocschecklist (2)
A1: FINANCIAL MANAGEMENT TOOLKIT FOR RECIPIENTS OF EU FUNDS FOR EXTERNAL ACTIONS
A2: DOCUMENTATION CHECKLIST
D3: Present | E3: Absent | F3: Not Applicable | G3: Comments / Notes
A5: A. | B5: PROCUREMENT & GRANTS
A6: A1 | B6: Tender dossier, call for proposal documents, technical specifications, instructions to tenderers, terms of reference and other similar documents
A7: A2 | B7: Copy of publications made
A8: A3 | B8: Copy of invitations sent to participants, including proof of dispatch / acknowledgement of receipt
A9: A4 | B9: If additional information is sent to the participants concerning the tender, copy of that additional information, together with the proof of simultaneous dispatch to all participants
A10: A5 | B10: Technical and financial offers received from all tender participants, including unsuccessful tenderers
A11: A6 | B11: Pro-forma invoice - Note (1)
A12: A7 | B12: Signed tender opening report and annexed checklist
A13: A8 | B13: Signed evaluation report and annexed checklist
A14: A9 | B14: Declarations of objectivity and confidentiality signed by the persons preparing the tender dossier, and declarations of impartiality and confidentiality signed by the members of the tender opening and evaluation committees
A15: A10 | B15: Contract award proposal - Note (2)
A16: A11 | B16: Letter of approval of the award of the contract by the Head of EU Delegation - Note (2)
A17: A12 | B17: Letters of notification of the tender results to the successful and unsuccesful tenderers.
A19: B. | B19: CONTRACTING
A20: B1 | B20: Supply, Service or Works contract signed with the supplier/service provider/contractor.
A21: B2 | B21: Grant contract signed with the Recipient - Note (3)
A22: B3 | B22: Copy of bank and other guarantees, where contractually required
A24: C. | B24: IMPLEMENTATION
A25: C1 | B25: Delivery documents, preferably originating from a third party (for example, supplier's delivery note, transportation documents or customs documents in case of imported goods)
A26: C2 | B26: If rules of origin apply to the action, official certificate of origin of the supplies
A27: C3 | B27: Provisional / final acceptance reports for supplies
A28: C4 | B28: Provisional / final acceptance certificates for works
A29: C5 | B29: Report on the services provided, duly approved and dated
A30: C6 | B30: Grant implementation report, duly approved and dated - Note (3)
A31: C7 | B31: Supplier's official invoice(s), established following the laws and rules of the country of the supplier - Note (4)
A32: C8 | B32: Credit note(s), if applicable - Note (5)
A33: C9 | B33: Do the invoices/credit notes obtained show at least the following information:
B34: - full official name and seat address of the supplier, together with his contact details (e.g. telephone, fax, email, website)?
B35: - official registration number of the supplier in the country were he is established (e.g. commercial registry number, VAT number)?
B36: - bank account number of the supplier?
B37: - identification of the Entity to which the invoice is addressed?
B38: - identification of the project or programme to which the invoice relates?
B39: - detailed description (list) of the items sold and unit prices?
B40: - in case the invoice relates to certain specifically identifiable items, the unique identification numbers of these items? - Note (6)
B41: - total amount to be paid with an indication of the currency, and with the amount of VAT or other sales taxes separately disclosed?
A43: D. | B43: CASH AND BANK DOCUMENTS
A44: D1 | B44: Official bank statements issued by the Bank for all receipt and payments
A45: D2 | B45: Petty cash book and related petty cash vouchers
A47: E. | B47: PAYMENT DOCUMENTS
A48: E1 | B48: Payment requests received from the supplier - Note (7)
A49: E2 | B49: Bank statements, showing the payee, the account number and the amount paid
A50: E3 | B50: Copies of signed cheques (in case of payment by cheques)
A51: E4 | B51: In case of payment in cash, payment voucher, signed by the payee, acknowledging the receipt of the funds
A53: F. | B53: PERSONNEL EXPENSES
A54: F1 | B54: Personnel register, listing the staff together with their relevant data (identification data of the person, address, family status, function, title, etc)
A55: F2 | B55: Signed employment / work contracts and amendments thereto
A56: F3 | B56: Payroll calculation listing for each period of calculation of pay
A57: F4 | B57: Payroll fiches (established for tax purposes as well as for internal purposes)
A58: F5 | B58: Copies of returns to the relevant authorities in respect of social security contributions, social insurances, payroll witholding tax deductions, and, in general, any other returns that must be submitted to official authorities of the country in connection with compulsory payroll-related payments
A59: F6 | B59: Proof of payment of the net salaries to the employees
A60: F7 | B60: Proof of payment of all payroll-related taxes and social security contributions to the relevant national authorities
A61: F8 | B61: Vacation and leave statements
A62: F9 | B62: In the event of termination of the employment contract, documentation regarding any dismissal allowance claims, evidence that these are legal and not excessive, and proof of their payment.
A63: F10 | B63: In the event of payments of costs of personnel seconded from the beneficiary country or from other entities:
B64: - list of the personnel concerned
B65: - copy of the agreements regarding the payments made
B66: - calculation of the amounts paid
B67: - proof of payment
A69: G. | B69: REIMBURSABLE TRAVEL AND MISSION EXPENSES
A70: G1 | B70: Mission order approved by the person authorised to approve the mission, with an indication of the date/place of mission and of the person sent on mission - Note (8) | D70: Yes
A71: G2 | B71: Approved mission report - Note (9) | D71: Yes
A72: G3 | B72: Approved expense report - Note (10) | D72: N/A
A73: G4 | B73: Transport invoices | D73: N/A
A74: G5 | B74: Ticket stub or tickets for the means of transport - Note (12) | D74: Yes
A75: G6 | B75: Hotel bills and bills for other expenses at the place of mission - Note 13) | D75: N/A
A76: G7 | B76: Signed training attendance lists - Note (14) | D76: N/A
A78: H. | B78: ASSETS
A79: H1 | B79: Register of investment assets | G79: to be done
A80: H2 | B80: Inventory lists and permanent inventory records | G80: to be done
A81: H3 | B81: Approved requests for disbursements of goods from the permanent inventory records
A82: H4 | B82: List of vehicles whose running costs are paid by the project | G82: to be done
A83: H5 | B83: Vehicle log books | D83: yes
A84: H6 | B84: Register of leased assets | D84: N/A
A85: H7 | B85: Minutes of transfer of ownership of equipment to the beneficiary country | D85: N/A | G85: at end of project
A87: I. | B87: ACCOUNTING
A88: I1 | B88: General ledger accounts and trial balances | D88: Yes
A89: I2 | B89: All accounting reconciliations, for example:
B90: - bank reconciliations | D90: yes
B91: - petty cash count forms and reconciliations
B92: - physical inventory lists | D92: yes | G92: veriffy regularly
B93: - analysis and reconciliation of each asset or liability account, showing the analysis of the content of the account | G93: verify
A94: I3 | B94: Financial reports from project partners or other programme implementing entities | G94: Verify agrhymet, ICPAC
A96: J. | B96: OTHER
A97: J1 | B97: Evidence that the EU visibility obligation is respected (for example, photos of the vehicles showing the EU logo, photos of the premises showing EU display panels, etc) | D97: yes
A98: J2 | B98: If the project has pending litigations, legal file per litigation case containing the legal letters, the court decisions and other related pertinent documentation. | D98: N/A
D101: Prepared by: | F101: Name, Position, Signature, Date
D103: Approved by: | F103: Name, Position, Signature, Date | H103: Dec 28, 2016
A108: NOTES
A109: (1) | B109: In case of certain supply procurements, it is frequent practice that the supplier submits its offer under the form of a pro-forma invoice
A110: (2) | B110: For cases where the project arrangements require the ex-ante approval of the contract award by the Head of EU Delegation
A111: (3) | B111: In case of sub-grants within the project or programme
A112: (4) | B112: Please note that this is the official invoice and not the pro-forma invoice (a pro-forma "invoice" is not an official invoice, it is only a price offer)
A113: (5) | B113: A credit note is an official invoice with a negative amount. Credit notes are generally used in case a correction needs to be made to an amount already invoiced.
A114: (6) | B114: For example, vehicle serial number in case of the purchase of a vehicle, or vehicle plate registration number in case of gasoline refil of the vehicle
A115: (7) | B115: In case no invoice is established, for example payment requests for advances
A116: (8) | B116: A mission order is a document authorising a staff member to carry out a specific task during a fixed duration and at a precise location that is different from his or her normal place of work. The purpose of a mission order is to evidence that the mission was duly authorised and is in the interest of the project.
A117: (9) | B117: A mission report is a document prepared by the person who carried the mission, explaining the mission accomplishments. The purpose of a mission report is to evidence that the work has actually taken place and is in the interest of the project.
A118: (10) | B118: An expense report is a statement prepared by the person who carried the mission, detailing his or her claim in respect of the mission expenses to be reimbursed to him or her.
A119: (11) | B119: These documents prove the actual travel in case of travel by public transport other than by air (e.g. train or bus)
A120: (12) | B120: Hotel bills and bills for other costs at the place of mission are not necessary to prove the costs if the mission allowances are reimbursed by means of fixed per diem allowances. It may however be useful to retain them, as they can be used to prove the presence of the person at the place of mission during the foreseen dates.
A121: (13) | B121: Signed attendance lists can be useful to prove the presence of the attendees to a training session. They can be used to prove costs reimbursed to training attendees. They can also be useful to prove that the training has actually taken place.

Sheet scheduleQ32017
A2: Reference number | B2: Results &activities | C2: Responsability | D2: Year 3 period Q1 2017
D3: Week1 | E3: Week2 | F3: Week3 | G3: week4 | H3: week5 | I3: week6 | J3: week7 | K3: week8 | L3: week9 | M3: week10 | N3: week11 | O3: week12
A4: 1 | B4: Data Access
A5: 1.1 | B5: Mesa station sration Univ Dakar and Nairobi | C5: SDA and AFO (coL)
A6: 1.1.1 | B6: prepare and publish tender for site preparation | C6: PM(L), AFO(S)
A7: 1.1.2 | B7: Collect submissions a, analy and select the optimal provider
A8: 1.1.3 | B8: negotiate and sing contracts
A9: 1.1.4 | B9: Monitor, evaluate implementation
A10: 1.1.5 | B10: Validate outputs, make payments and close contract
A11: 1.2 | B11: MESA station Maintenance (ACMAD, UoN, UoD) | C11: SDA (L) with DIT(S), USAID experts (data base and data rescue experts)
A13: 1.3 | B13: Website administration and Maintenance, upgrade, update | C13: SDA(L) with TA(S) and USAID data expert
A15: 1.4 | B15: Data Centre/potal Design, development, installation with training for maintenance | C15: TAT contractor(L) SAD and DIT (S) and USAID data expert
A18: 1.5 | B18: Data centre/portal operation and maintenance ( data rescue and management) | C18: SDBA(L) and DIT(S) and USAID data expert
A19: 1..6 | B19: support the use the MESA satation products and copernicus onlide water level data for drought monitoring | C19: SAD and TEs
B20: support preparations for regional level trainings/foras on climate services with information upload on website, GCFS international training on climate services upload on websites ( RCC, ACMAD.MESA, ACMAD), the third Continental Steering Committee and end of project meetings upload docs on websites, consultations and meetings (with exhibitions, policy dialogue days, panel discussions), with monitoring of visitors and visits of the website, Twitter and Facebook pages, and updating the stakeholder’s database | C20: SAD, Tas support, DIT support
A21: 1.6 | B21: Liaise with EUMETSAT AND JRC on design of climate service station | C21: PM and TA
B22: geoportall development ( ingest data, archiving, and search and retrieval functions) and connection to other MESA databases | C22: TAT NKE and USAID experts with ACMAD/MESA SAD
B23: support automation of climate services generation processses and systems | C23: USAID experts , SAD expert
B24: Maintain video conference equipment | C24: SAD and DIT and USAID experts
A26: 2 | B26: Climate Services
A27: 2.1 | B27: Operational generation of products for the 2 services | C27: TE and STEs DSF and CCA
B28: Initiation of the Integration of the two services in the MESA station with catalogues of products/services based on user Feedback | C28: SDA, TE, TA, PM
B29: provision of service interpretation support with Verification products , collection and analysis of uses feedbacks | C29: STE DSF, Policy liaison Offocer
B30: generate 3 DSF and 2 CCA services remaining | C30: TE, STE, PM (contral, review, supervise)
B31: Prepare/update user guide including feedback from training events | C31: STE, PM
B32: Prepare the second peer review reports and sustainability concept for reviewers | C32: PM
B33: Collect feedbacks and analyze using workshops, training, fora and conferences or meetings during the next quarter ( steering and end of project meeting, presac, 2 regional trainings, | C33: NRC deployee, TE s,
B34: support with climate services the Africa Risk Capacity (ARC), OCHA, National flood management committee in Niger, consultation group on Disaster Risk Management in West Africa during exchanges, dialogues, meetings and other events. | C34: T E s and PM
A35: 3 | B35: Collaboration
B36: Signature of MoU with SADC-CSC or AGRHYMET | C36: PM, TA
B37: Organization of events ( 2 regional trainings, Presac, steering &end of project meeting,, COP 23, SWIOCOF, ...)
B38: Participation and contribution to events of partners ( 11 consultation on DRR with NMHSs and civil protection …)
B39: Organization of joint planning meetings (EUMETSAT, JRC, DWD, ARC, WMO) and other partners
B40: 11th consultation meeting for Disaster Risk Management in the ECOWAS region in July 5-7 2017
A43: 4 | B43: Policy/political frameworks
B44: Preparation or collection of speeches, statements and reports of stakeholders mentioning policies, plans, decisions made with climate services | C44: Communication team and SDA
B45: Preparation , organization and reporting on policy dialogue, roundtable, side events, exhibitions at COP 23, CSC-3 and end of project meeting, RCOFs and othe forum | C45: PM and Communication team, SDA
B46: Preparation and organization and reporting on targeted brief to CSC-3 and other policy bodies of AU | C46: PM at AWG and AWGDRR meetings
B47: steering committee members may attend and play advocacy roles with support of ACMAD-MESA: • 11th consultation meeting on DRM in the ECOWAS region, July 5-7 2017 • 2 regional trainings on Climate Services in Cotonou-Benin and Douala-Cameroon in August and September 2017. • Third ACMAD-MESA steering committee meeting and end of project event ( July-August 2017) | C47: PM and Steering members
A48: 5 | B48: Capacity building
B49: Further develop or consolidate training materials.
B50: Interaction with Universities will continue for development of curricula and modules for university training on climate services using ACMAD- MESA materials, UCAR/COMET and RCOFs training materials (keywords, table of contents, chapters and sections, sample products and ppt presentations… ). Chapters in User Guides for the two services dedicated to training of students and professionals will continue to be developed. | C50: PM and TE s and universities
B51: Design and develop distance education packages | C51: Universities TE s and PM
B52: Prepare and implement on the job training for focal points selected | C52: TE s , USAID/NRC deployee, PM
B53: continuation of on the job training for 5 Experts from National Meteorological Services | C53: TE s, USAID NERC deployee, PM
A54: 6 | B54: Management
A55: 6.1 | B55: Recruitment and staff management ( CCA and DSF STE on training, ), University of dakar recruitment, management of staff on site at ACMAD and in universities | C55: PM(L), TA(S)
B56: Supervise staff on organization of regional trainings, CSC 3 and end of project meeting, RCOFs; prepare flyers on RCOFs for RCOF review , | C56: PM and staff
A57: 6.2 | B57: Administration, financial management and training of co-applicants on EDF rules ( account verification , request for prefinancing, financial reporting, administration, accounting, The final project report following relevant template will be prepared. Weekly reports and timesheets, meetings, fora and workshops reports will be drafted and reviewed. Monthly production of accounting and financial statements (journals, bank and cash flow reconciliation, asset registry, consumable and other supply management will continue. | C57: AFO(L), PM and TA (S), DG(S)
A58: 6.3 | B58: Development of networks and partnershipswith RCOFs, Steering, planning, technical meetings, consultation meeting on DRR, WMO RCOF review meeting | C58: PM(L), TA(S)
A59: 6.3.1 | B59: organize communication with WMO/USAID training (usaid) | C59: PM, communication officer
A60: 6.3.2 | B60: Last financial reporting for Vigirisk ( ACMAD may reimburse the AMA balance by end on 2017 using MESA indirect cost), prepare end of MESA documents including final report | C60: PM and ACMAD SAF
A61: 6.3.3 | B61: Formulation of GCF project with GFCS regional office, formulation of GFCS ACP project with consultants, formulation of MESA services sustainability project with AfDB | C61: PM and partners
A62: 6.3.4 | B62: Formulation of Data rescue project with partners( WMO,…) | C62: PM
A63: 6.3.5 | B63: formulation&implementation of work plan wth ARC, signature of MoU with ARC | C63: PM and TA
A64: 6.3.6 | B64: formulation and implementation of GMES&Africa programme | C64: PM
A65: 6.3.7 | B65: formulation of GFCS&ACP programme | C65: PM and TA
B67: Prepare, supervise, review, sign reports and timesheets | C67: PM
B68: Prepare and use visibility and communication plan &materials at CSC-2, Mesa forum, CONTr_02 and Reg Trs | C68: CO(L) with PM and TA(S) , inputs from other team members
B69: Prepare communication strategy for USAID project | C69: USAID consultant and PM
B70: Follwo up appraisal and signature of the grant for MESA services sustainability | C70: PM, AfDN, DG
B71: plan follow and report to peer reviewers and TAT | C71: PM
B72: • The www.acmad-au.org website, dedicated Facebook and Twitter pages, Flickr and YouTube platforms, emails, as well as face to face events will be used for interactions with stakeholders, dissemination of climate information and information on coming events, collection and analysis of feedbacks and success stories; • The project management will continue to encourage liaison of communication experts with thematic experts to operate the help desk; • Project staff will continue participation to interviews, events, meetings, dialogues and exhibitions; • Project relevant visibility events will be prepared, organized and followed-up; • Communication officer will continue to produce success stories, factshets and news, collect user feedbacks and archive of communication materials in collaboration with database expert; • The stakeholder database will continue to be updated and used to disseminate information (e.g. reports, bulletins, briefs, success stories, fact sheets, press releases, interviews, media reports). | C72: Communication offiser and SAD(co_L) , PM (S)
B73: discuss partnerships for climate service station and online platform for provision of climate services | C73: PM and partners
B74: Revise acmad staff regulations to attract internat ionaly recognized expertstalents

Sheet budgettrimestreloperationel2015
A2: Costs | B2: Unit | C2: # of units | D2: Unit rate | E2: Total Cost | F2: Budget in percent of total
D3: (in EUR) | E3: (in EUR)3 | G3: Q1 | I3: Q2 | K3: Q3 | M3: Q4
A4: 1. Human Resources | P4: Activity number | Q4: annual buget | R4: budget ajusté à mettre dans le doc PTBA voir P25 et P23
A5: 1.1 Salaries | B5: Per month | C5: 143 | D5: 3,055 | E5: =E6+E18 -> 351,300 | F5: =E5/E107 -> 45.2% | O5: =O6+O18 -> 351,300 | P5: 1 | Q5: =SUM(G7/3,I7/4,G8/4,G9,G63/3,G64/3,I8/7,I64/3,K64/3,M64/3,G106/3) -> 27406.66667 | R5: =Q5+625.2604167 -> 28032 | X5: =Q21*100/95 -> 807515.614
A6: 1.1.1 Technical | B6: Per month | C6: =SUM(C7:C16) -> 80 | D6: =E6/C6 -> 2,913 | E6: =SUM(E7:E16) -> 233,000 | F6: =E6/E107 -> 30.0% | O6: =O16+O15+O14+O13+O12+O11+O10+O9+O8+O7 -> 233,000 | P6: 2 | Q6: =SUM(I9,K9/2,M9/3,G63/3,I63/2,G64/3,I64/3,K64/3,M64/3,G65/2,I65/2,K65/2,M65/2,G106/3,I106/2,K106/3,M106/3) -> 49621.66667 | R6: =Q6+625.2604167 -> 50247
A7: Senior Thematic Expert (ACMAD) - service 1 | B7: Per month | C7: 12 | D7: 3,500 | E7: =C7*D7 -> 42,000 | G7: =E7/4 -> 10500 | H7: act 1, 3, 4 | I7: =E7/4 -> 10500 | J7: 1, 3, 4,5 | K7: =E7/4 -> 10500 | L7: 5,12 | M7: =E7/4 -> 10500 | N7: 6,12 | O7: =M7+K7+I7+G7 -> 42000 | P7: 3 | Q7: =SUM(G7/3,I7/4,G8/4,I8/7,G16/3,I16/3,K16/3,M16/3,G19/6,I19/9) -> 25791.66667 | R7: =Q7+625.2604167 -> 26417
A8: Senior Thematic Expert (ACMAD) - service 2 | B8: Per month | C8: 12 | D8: 3,500 | E8: =C8*D8 -> 42,000 | G8: =E8/4 -> 10500 | H8: act1,3,4,9 | I8: =G8 -> 10500 | J8: 1,;3;4,5,8,9,10 | K8: =I8 -> 10500 | L8: 5,8,9,10,12 | M8: =K8 -> 10500 | N8: 6,9,10,12 | O8: =M8+K8+I8+G8 -> 42000 | P8: 4 | Q8: =SUM(G7/3,I7/4,G8/4,I8/7,G16/3,I16/3,G19/6,I19/9,G10/6,I10/6,K10/6,M10/6,K16/3,M16/3) -> 31791.66667 | R8: =Q8+625.2604167 -> 32417
A9: System Engineer (ACMAD) | B9: Per month | C9: 12 | D9: 2,750 | E9: =C9*D9 -> 33,000 | G9: =E9/4 -> 8250 | H9: act 1 | I9: =G9 -> 8250 | J9: act2 | K9: =I9 -> 8250 | L9: act2 ,12 | M9: =K9 -> 8250 | N9: act 2, 10,12 | O9: =G9+I9+K9+M9 -> 33000 | P9: 5 | Q9: =SUM(I7/4,K7/2,I8/7,K8/5,G16/3,I16/3,K16/3,M16/3,I19/9,K19/7,G10/6,I10/6,K10/6,M10/6) -> 32755.95238 | R9: 33381
A10: Software Engineer + GIS Expert (ACMAD) | B10: Per month | C10: 12 | D10: 3,000 | E10: 36,000 | G10: =E10/4 -> 9000 | H10: 4,5,6,8,9,12 | I10: =E10/4 -> 9000 | J10: 4,5,6,8,9,12 | K10: =E10/4 -> 9000 | L10: 4,5,6,8,9,12 | M10: =E10/4 -> 9000 | N10: 4,5,6,8,9,12 | O10: =SUM(G10:M10) -> 36000 | P10: 6 | Q10: =SUM(M7/2,M8/4,M19/6,G10/6,I10/6,K10/6,M10/6) -> 15700 | R10: 16325
A11: Partner - Université de Dakar - STE | B11: Per month | C11: 4 | D11: 2,500 | E11: 10,000 | G11: 2500 | H11: 7 | I11: =G11 -> 2500 | J11: 7 | K11: =I11 -> 2500 | L11: 12,13,7 | M11: =K11 -> 2500 | N11: 12,13,7 | O11: =M11+K11+I11+G11 -> 10000 | P11: 7 | Q11: =SUM(G11,G12,G13,G14,G15,I11,I12,I13,I14,I15,K11/3,K12/3,K14/3,K15/3,M11/3,M12/3,M13/3,M14/3,M15/3,G19/6,I19/9,K19/7,M19/6) -> 34139.28571 | R11: 34765
A12: Partner - University of Nairobi - STE | B12: Per month | C12: 4 | D12: 2,500 | E12: 10,000 | G12: 2500 | H12: 7 | I12: =I11 -> 2500 | J12: 7 | K12: =K11 -> 2500 | L12: 12,14,7 | M12: =K12 -> 2500 | N12: 12,14,7 | O12: =M12+K12+I12+G12 -> 10000 | P12: 8 | Q12: =SUM(I8/7,K8/5,I19/8,K19/7,G10/6,I10/6,K10/6,M10/6) -> 12533.03571 | R12: 13158
A13: Partner - SADC-CSC/BDMS (RCC) - STE | B13: Per month | C13: 3 | D13: 2,500 | E13: 7,500 | G13: 1875 | H13: 7 | I13: =G13 -> 1875 | J13: 7 | K13: =I13 -> 1875 | L13: 12,16,7 | M13: =K13 -> 1875 | N13: 12,16,7 | O13: =M13+K13+I13+G13 -> 7500 | P13: 9 | Q13: =SUM(G8/4,I8/7,K8/5,M8/4,G19/6,I19/9,K19/7,M19/6,G21/3,I21/3,K21/3,M21/3,I28/2,I30/2,K28/2,K30/2,M28/2,M30/2,G10/6,I10/6,K10/6,M10/6,G96/3,I96/3,K96/3,M96/3) -> 36047.61905 | R13: 36673
A14: Partner - AGRHYMET-RCC - STE | B14: Per month | C14: 3 | D14: 2,500 | E14: 7,500 | G14: 1875 | H14: 7 | I14: =G14 -> 1875 | J14: 7 | K14: =I14 -> 1875 | L14: 12,16,7 | M14: =K14 -> 1875 | N14: 12,16,7 | O14: =M14+K14+I14+G14 -> 7500 | P14: 10 | Q14: =SUM(I8/7,K8/5,M8/4,G21/3,I21/3,K21/3,M21/3,I28/2,I30/2,K28/2,K30/2,M28/2,M30/2,I34/3,M34/3,I46/2,M46/2,I48/2,I50/2,M48/3,M50/3,G96/3,I96/3,K96/3,M96/3,M34/3,I40/3,M40/3) -> 50300 | R14: 50925
A15: Partner - ICPAC - STE | B15: Per month | C15: 3 | D15: 2,500 | E15: 7,500 | G15: 1875 | H15: 7 | I15: =G15 -> 1875 | J15: 7 | K15: =I15 -> 1875 | L15: 12,16,7 | M15: =I15 -> 1875 | N15: 12,16,7 | O15: =M15+K15+I15+G15 -> 7500 | P15: 11 | Q15: =SUM(G19/6,I19/9,K19/7,M19/6,G20/4,I20/4,K20/4,M20/4,G21/3,I21/3,K21/3,M21/3,I34/3,I56,M56/2,I87/4,K87/4,M87/4,I90,M48/3,M50/3,M95,I40/3,M40/3,M34/3) -> 72314.28571 | R15: 72940
A16: Service Development - STE ACMAD / others Centers | B16: Per month | C16: 15 | D16: 2,500 | E16: 37,500 | G16: 9375 | H16: 3,4,5 | I16: =G16 -> 9375 | J16: 3,4,5 | K16: =E16/4 -> 9375 | L16: 3,4,5 | M16: =E16/4 -> 9375 | N16: 3,4,5 | O16: =G16+I16+K16+M16 -> 37500 | P16: 12 | Q16: =SUM(K7/2,M7/2,K8/5,M8/4,K9/2,M9/3,K11/3,K12/3,K13/3,K14/3,K15/3,M11/3,M12/3,M13/3,M14/3,M15/3,G10/6,I10/6,K10/6,M10/6) -> 35183.33333 | R16: 35809
P17: 13 | Q17: =SUM(M19/6,G20/4,I20/4,K20/4,M20/4,I34/3,I46/2,M46/2,I48/2,I50/2,M48/3,M50/3,M56/2,K84,M84,I87/4,K87/4,M87/4,G96/3,I96/3,K96/3,M96/3,M34/3,I40/3,M40/3,K11/3,M11/3,) -> 61241.66667 | R17: 61867
A18: 1.1.2 Administrative/ support staff | B18: Per month | C18: =SUM(C19:C22) -> 42 | D18: =E18/C18 -> 2,817 | E18: =SUM(E19:E22) -> 118,300 | F18: =E18/E107 -> 15.2% | G18: =SUM(E19:E22) -> 118,300 | O18: =O19+O20+O21+O22 -> 118300 | P18: 14 | Q18: =SUM(K12/3,M12/3,I19/9,K19/7,K106/3,M106/3) -> 13127.61905 | R18: 13753
A19: Project Manager (ACMAD) | B19: Per month | C19: 12 | D19: 3,650 | E19: =C19*D19 -> 43,800 | G19: =E19/4 -> 10950 | H19: 3,4,7,9,11, 15 | I19: =G19 -> 10950 | J19: 3,4,5,7,8,9,11,14,15 | K19: =I19 -> 10950 | L19: 5,7,8,9,11,14,15 | M19: =K19 -> 10950 | N19: 6,7,9,11,13,15 | O19: =M19+K19+I19+G19 -> 43800 | P19: 15 | Q19: =SUM(G19/6,I19/9,K19/7,M19/6,G20/4,I20/4,K20/4,M20/4) -> 14680.95238 | R19: 15306
A20: Finance and Admin Officer (ACMAD) | B20: Per month | C20: 12 | D20: 2,750 | E20: =C20*D20 -> 33,000 | G20: =E20/4 -> 8250 | H20: 11,13,16,15 | I20: =G20 -> 8250 | J20: 11,13,16;15 | K20: =I20 -> 8250 | L20: 11,13,16,15 | M20: =K20 -> 8250 | N20: 11,13,16,15 | O20: =M20+K20+I20+G20 -> 33000 | P20: 16 | Q20: =SUM(K13/3,M13/3,K14/4,M14/3,K15/3,M15/3,G20/4,I20/4,K20/4,M20/4,G22,I22,K22,M22,I61,G63/3,I63/2,G64/3,I64/3,K64/3,M64/3,G65/2,I65/2,K65/2,M65/2,K66,M66,I75,K75,M75,I76,K76,M76,G78,I78,K78,M78,G106/3,I106/2,K106/3,M106/3,G79,I79,K79,M79,M85,M86,G88,I88,K88,M88,G99,I99,K99,M99,G104,I104,K104,M104) -> 254504.4167 | R20: 255130
A21: Communication officer (ACMAD) | B21: Per month | C21: 8 | D21: 2,250 | E21: =C21*D21 -> 18,000 | G21: =E21/4 -> 4500 | H21: 9,10,11 | I21: =G21 -> 4500 | J21: 9,10,11 | K21: =I21 -> 4500 | L21: 9,10,11 | M21: =K21 -> 4500 | N21: 9,10,11 | O21: =M21+K21+I21+G21 -> 18000 | Q21: =SUM(Q5,Q6,Q7,Q8,Q9,Q10,Q11,Q12,Q13,Q14,Q15,Q16,Q17,Q18,Q19,Q20) -> 767139.8333 | R21: =SUM(R5:R20) -> 777144
A22: Support staff (Project Assistant, HR, driver, logistic officer, secretary ACMAD) | B22: Per month | C22: 10 | D22: 2,350 | E22: =C22*D22 -> 23,500 | G22: =E22/4 -> 5875 | H22: 16 | I22: =G22 -> 5875 | J22: 16 | K22: =I22 -> 5875 | L22: 16 | M22: =G22 -> 5875 | N22: 16 | O22: =M22+K22+I22+G22 -> 23500
A23: 1.2 Salaries expat/int. Staff or Abroad (staff assigned to the Action) | B23: Per month | C23: =C24 -> 0 | D23: =D24 -> 0 | E23: =E24 -> 0 | Q23: =E107-Q21 -> 10,004 | R23: Pour equilibrer cette difference dans P23 est partagée en parts égal à toutes les 16 activités. Montant par activitéP25
A24: STE | B24: Per day | C24: 0 | D24: 0 | E24: 0
A25: 1.3 Per diems for missions/travel5 | C25: 330 | D25: 150 | E25: =+E26+E32+E33 -> 42,600 | F25: =E25/E110 -> 5.5% | G25: =+G26+G32+G33 -> 0 | H25: 0 | I25: 20,600 | J25: 0 | K25: 1,400 | L25: 0 | M25: 20,600 | N25: 0 | O25: =O26+O33 -> 42,600 | Q25: =Q23/16 -> 625.2604167
A26: 1.3.1 Abroad (Additional support for key areas) | B26: Per diem | C26: =SUM(C27:C30) -> 28 | D26: =E26/C26 -> 150 | E26: =SUM(E27:E30) -> 4,200 | G26: =SUM(G27:G30) -> 0 | H26: 0 | I26: 1,400 | J26: 0 | K26: 1,400 | L26: 0 | M26: 1,400 | N26: 0 | O26: =O28+O30 -> 4200
A27: Installation of Rx | B27: Per diem | C27: 0 | D27: 0 | E27: =C27*D27 -> 0
A28: Policy Makers Sentization | B28: Per diem | C28: 10 | D28: 150 | E28: =C28*D28 -> 1,500 | I28: =K28 -> 500 | J28: 9,10 | K28: =E28/3 -> 500 | L28: 9,10 | M28: =K28 -> 500 | N28: 9,10 | O28: =M28+K28+I28 -> 1500
A29: Ad-Hoc & On-the-job-training | B29: Per diem | C29: 0 | D29: 150 | E29: =C29*D29 -> 0 | I29: 0 | K29: 0 | M29: 0
A30: Participation Fora (conferences, seminaires, etc) | B30: Per diem | C30: 18 | D30: 150 | E30: =C30*D30 -> 2,700 | I30: =E30/3 -> 900 | J30: 9,10 | K30: =I30 -> 900 | L30: 9,10 | M30: =K30 -> 900 | N30: 9,10 | O30: =M30+K30+I30 -> 2700
A32: 1.3.2 Local (staff assigned to the Action) | B32: Per diem | C32: 0 | D32: 0 | E32: 0
A33: 1.3.3 Seminar/conference participants | B33: Per diem | C33: =SUM(C34:C40) -> 256 | D33: =E33/C33 -> 150 | E33: =SUM(E34:E40) -> 38,400 | G33: =SUM(G34:G40) -> 0 | H33: 0 | I33: =SUM(I34:I40) -> 19,200 | J33: =SUM(J34:J40) -> 0 | K33: 0 | L33: 0 | M33: 19,200 | N33: 0 | O33: =O34+O40 -> 38,400
A34: Kick off Workshop + End of the project | B34: Per diem | C34: 175 | D34: 150 | E34: =C34*D34 -> 26,250 | I34: =E34/2 -> 13125 | J34: 10,11,13 | M34: =E34-I34 -> 13,125 | N34: 10,11,13 | O34: =M34+I34 -> 26,250
A35: 2 Cont. Training Workshops by ACMAD | B35: Per diem | C35: 0 | D35: 150 | E35: 0
A36: 2 Reg. Training Workshops by AGRHYMET-RCC | B36: Per diem | C36: 0 | D36: 150 | E36: 0
A37: 2 Reg. Training Workshops by ICPAC | B37: Per diem | C37: 0 | D37: 150 | E37: 0
A38: 2 Reg. Training Workshops by SADC-CSC/BDMS | B38: Per diem | C38: 0 | D38: 150 | E38: 0
A39: STE - Workshop facilitator | B39: Per diem | C39: 0 | D39: 0 | E39: 0
A40: ACMAD Thema Steering and working committee | B40: Per diem | C40: 81 | D40: 150 | E40: 12,150 | I40: =E40/2 -> 6075 | J40: 10,11,13 | M40: =E40/2 -> 6075 | N40: 10,11,13 | O40: =M40+I40 -> 12150
A42: Subtotal Human Resources | E42: =E25+E23+E5 -> 393,900 | F42: =E42/E107 -> 50.7% | O42: =O25+O5 -> 393,900
A43: 2. Travel6
A44: 2.1. International travel | B44: Per flight | C44: =SUM(C45:C56) -> 63 | D44: =E44/C44 -> 800 | E44: =SUM(E45:E56) -> 50,400 | F44: =E44/E107 -> 6.5% | O44: =O46+O50+O56+O48 -> 50,400
A45: Installation of Rx | B45: Per diem | C45: 0 | D45: 0 | E45: 0
A46: Policy Makers Sentization | B46: Per flight | C46: 3 | D46: 800 | E46: =C46*D46 -> 2,400 | I46: 1,500 | J46: 10,13 | M46: =900 -> 900 | N46: 10,13 | O46: =M46+I46 -> 2,400
A47: Ad-Hoc & On-the-job-training | B47: Per flight | C47: 0 | D47: 800 | E47: =C47*D47 -> 0
A48: Participation Fora (conferences, seminaires, etc) | B48: Per flight | C48: 3 | D48: 800 | E48: =C48*D48 -> 2,400 | I48: =D48 -> 800 | J48: 10,13 | M48: =D48*2 -> 1600 | N48: 10,13,11 | O48: =I48+M48 -> 2,400
A50: Kick off Workshop + End of the project | B50: Per flight | C50: =30 -> 30 | D50: 800 | E50: =C50*D50 -> 24,000 | I50: =D50*15 -> 12000 | J50: 10, 13 | M50: =I50 -> 12000 | N50: 10,13,11 | O50: =M50+I50 -> 24000
A51: 2 Cont. Training Workshops by ACMAD | B51: Per flight | C51: 0 | D51: 800 | E51: 0
A52: 2 Reg. Training Workshops by AGRHYMET-RCC | B52: Per flight | C52: 0 | D52: 800 | E52: 0
A53: 2 Reg. Training Workshops by ICPAC | B53: Per flight | C53: 0 | D53: 800 | E53: 0
A54: 2 Reg. Training Workshops by SADC-CSC/BDMS | B54: Per flight | C54: 0 | D54: 800 | E54: 0 | H54: =100-50.7-12.8-6.5-3.1 -> 26.9
A55: STE | B55: Per flight | C55: 0 | D55: 0 | E55: 0
A56: ACMAD Thema Steering and working committee | B56: Per flight | C56: =27 -> 27 | D56: 800 | E56: 21,600 | I56: =20*D56 -> 16000 | J56: 11 | M56: =D56*7 -> 5600 | N56: 11,13 | O56: =M56+I56 -> 21600
A58: 2.2 Local transportation | B58: Per month | C58: 0 | D58: 150 | E58: 0 | G58: 0 | I58: 0 | K58: 0 | M58: 0 | O58: 0
A59: Subtotal Travel | E59: =E44+E58 -> 50,400 | F59: =E59/E110 -> 6.5% | G59: =G44+G58 -> 0 | H59: 0 | I59: 0 | J59: 0 | K59: 0 | L59: 0 | M59: 0 | N59: 0 | O59: =O44+O58 -> 50,400
A60: 3. Equipment and supplies7
A61: 3.1 Purchase or rent of vehicles | B61: Per vehicle | C61: 2 | D61: 30,000 | E61: =C61*D61 -> 60,000 | I61: =E61 -> 60,000 | J61: 16 | O61: =I61 -> 60,000
A62: 3.2 Furniture, computer equipment | C62: =SUM(C63:C68) -> 8 | D62: =E62/C62 -> 4,938 | E62: =SUM(E63:E68) -> 39,500 | O62: =O63+O64+O65+O66 -> 39500
A63: Personal Computers / Laptops | B63: Per Laptop | C63: 5 | D63: 800 | E63: =C63*D63 -> 4,000 | G63: =3200 -> 3200 | H63: 1,2,16 | I63: 800 | J63: 2,16 | O63: =G63+I63 -> 4000
A64: Network / Telecommunications at ACMAD | B64: Per Unit | C64: 1 | D64: 10,500 | E64: 10,500 | G64: =E64/4 -> 2625 | H64: 1,2,16 | I64: =G64 -> 2625 | J64: 1,2,16 | K64: =I64 -> 2625 | L64: 1,2,16 | M64: =K64 -> 2625 | N64: 1,2,16 | O64: =G64+I64+K64+M64 -> 10500
A65: Backup and archive system | B65: Per Unit | C65: 1 | D65: 20,000 | E65: 20,000 | G65: =E65/(4) -> 5000 | H65: 2,16 | I65: =G65 -> 5000 | J65: 2,16 | K65: =I65 -> 5000 | L65: 2,16 | M65: =K65 -> 5000 | N65: 2,16 | O65: =M65+K65+I65+G65 -> 20000
A66: Equipement/ materials (split, scanner, color printer, fax, photocopier..) | B66: Per year | C66: 1 | D66: 5,000 | E66: 5,000 | K66: =2500 -> 2500 | L66: 16 | M66: =2500 -> 2500 | N66: 16 | O66: =M66+K66 -> 5000
A67: Power supply | B67: Per Unit | C67: 0 | D67: 5,000 | E67: 0
A68: Communicantion and reproduction equipment | B68: Per Unit | C68: 0 | D68: 0 | E68: 0
A69: 3.3 Machines, tools… | E69: 0
A70: 3.4 Spare parts/equipment for machines, tools | E70: 0
A71: 3.5 Other (please specify) | E71: 0
A72: Subtotal Equipment and supplies | E72: =E61+E62+E69+E70+E71 -> 99,500 | F72: =E72/E107 -> 12.8% | G72: =G61+G62+G69+G70+G71 -> 0 | H72: 0 | K72: 0 | L72: 0 | M72: 0 | N72: 0 | O72: =O62+O61 -> 99,500
A73: 4. Local office
A74: 4.1 Vehicle costs ( Maintenance & Insurance) | B74: Per year | C74: =SUM(C75:C76) -> 2 | D74: =E74/C74 -> 3,750 | E74: =SUM(E75:E76) -> 7,500 | O74: =O75+O76 -> 7500
A75: Maintenance, Insurance | B75: Per year | C75: 1 | D75: 2,500 | E75: =C75*D75 -> 2,500 | I75: =1000 -> 1000 | J75: 16 | K75: =500 -> 500 | L75: 16 | M75: =1000 -> 1000 | N75: 16 | O75: =M75+K75+I75 -> 2500
A76: Petrol | B76: Per year | C76: 1 | D76: 5,000 | E76: =C76*D76 -> 5,000 | I76: =E76/3 -> 1666.666667 | J76: 16 | K76: =I76 -> 1666.666667 | L76: 16 | M76: =K76 -> 1666.666667 | N76: 16 | O76: =M76+K76+I76 -> 5000
A77: 4.2 Office Rent | B77: Per year | C77: 0 | D77: 0 | E77: 0
A78: 4.3 Consumables - office supplies | B78: Per year | C78: 1 | D78: 10,000 | E78: =C78*D78 -> 10,000 | G78: =E78/4 -> 2500 | H78: 16 | I78: =G78 -> 2500 | J78: 16 | K78: =I78 -> 2500 | L78: 16 | M78: =K78 -> 2500 | N78: 16 | O78: =M78+K78+I78+G78 -> 10000
A79: 4.4 Other services (tel/fax, electricity/cooling, maintenance of equipment) | B79: Per month | C79: 12 | D79: 1,600 | E79: =C79*D79 -> 19,200 | G79: =D79*3 -> 4800 | H79: 16 | I79: =G79 -> 4800 | J79: 16 | K79: =I79 -> 4800 | L79: 16 | M79: =K79 -> 4800 | N79: 16 | O79: =M79+K79+I79+G79 -> 19200
A80: Subtotal Local office | E80: =E74+E77+E78+E79 -> 36,700 | F80: =E80/E107 -> 4.7% | O80: =O79+O78+O74 -> 36700
A81: 5. Other costs, services8
A82: 5.1 Publications9
A83: 5.2 Studies, research9
A84: Internship/secondment | B84: Per year | C84: 6 | D84: 1,600 | E84: =C84*D84 -> 9,600 | K84: =D84*3 -> 4800 | L84: 13 | M84: =D84*3 -> 4800 | N84: 13 | O84: =M84+K84 -> 9600
A85: 5.3 Expenditure verification | B85: Per audit | C85: 1 | D85: 7,000 | E85: =C85*D85 -> 7,000 | M85: =E85 -> 7,000 | N85: 16 | O85: =M85 -> 7,000
A86: 5.4 Evaluation costs | B86: Per evaluation | C86: 1 | D86: 15,000 | E86: =C86*D86 -> 15,000 | M86: =E86 -> 15,000 | N86: 16 | O86: =M86 -> 15,000
A87: 5.5 Translation, interpreters and equipment | B87: Per event/day | C87: 20 | D87: 1,100 | E87: =C87*D87 -> 22,000 | I87: =D87*10 -> 11000 | J87: 13,11,12,9 | K87: =D87*5 -> 5500 | L87: 13,11,12,9 | M87: =K87 -> 5500 | N87: 13,11,12,9 | O87: =M87+K87+I87 -> 22000
A88: 5.6 Financial services (currency change, tranfer fees, bank services) | B88: Per year | C88: 1 | D88: 1,000 | E88: =C88*D88 -> 1,000 | G88: =E88/4 -> 250 | H88: 16 | I88: =G88 -> 250 | J88: 16 | K88: =I88 -> 250 | L88: 16 | M88: =K88 -> 250 | N88: 16 | O88: =M88+K88+I88+G88 -> 1000
A89: 5.7 Costs of conferences/seminars9 | B89: Per event | C89: =SUM(C90:C95) -> 2 | D89: =E89/C89 -> 5,000 | E89: =SUM(E90:E95) -> 10,000 | O89: =O90+O95 -> 10,000
A90: Kick off Workshop | B90: Per event | C90: 1 | D90: 5,000 | E90: =C90*D90 -> 5,000 | I90: =D90 -> 5,000 | J90: 11 | O90: 5000
A91: 2 Cont. Training workshops by ACMAD | B91: Per event | C91: 0 | D91: 5,000 | E91: 0 | O91: 0
A92: 2 Reg. Training workshops by AGRHYMET-RCC | B92: Per event | C92: 0 | D92: 5,000 | E92: 0 | O92: 0
A93: 2 Reg. Training workshops by ICPAC | B93: Per event | C93: 0 | D93: 5,000 | E93: 0 | O93: 0
A94: 2 Reg. Training workshops by SADC-CSC/BDMS | B94: Per event | C94: 0 | D94: 5,000 | E94: 0 | O94: 0
A95: ACMAD Thema Steering and working committee | B95: Per event | C95: 1 | D95: 5,000 | E95: 5,000 | M95: =D95 -> 5,000 | N95: 11 | O95: =M95 -> 5,000
A96: 5.8. Visibility actions10 | C96: 1 | D96: 20,000 | E96: 20,000 | F96: =E96/E107 -> 0 | G96: =E96/4 -> 5000 | H96: 9,10,13 | I96: =G96 -> 5000 | J96: 9,10,13 | K96: =I96 -> 5000 | L96: 9,10,13 | M96: =K96 -> 5000 | N96: 9,10,13 | O96: =M96+K96+I96+G96 -> 20000
A97: Subtotal Other costs, services | E97: =SUM(E82:E89)+E96 -> 84,600 | F97: =E97/E110 -> 10.9% | O97: =O96+O89+O88+O87+O86+O85+O84 -> 84,600
A98: 6. Other
A99: Other - Recruitment costs | B99: Per recruitment | C99: 12 | D99: 2,000 | E99: =C99*D99 -> 24,000 | G99: =D99*6 -> 12000 | H99: 16 | I99: =D99*2 -> 4000 | J99: 16 | K99: =D99*2 -> 4000 | L99: 16 | M99: =D99*2 -> 4000 | N99: 16 | O99: =M99+K99+I99+G99 -> 24000
A100: Other - Validation- Climate Change Assessment Service | C100: 0 | D100: 0 | E100: =C100*D100 -> 0
A101: Other - Validation- Drought Service | C101: 0 | D101: 0 | E101: =C101*D101 -> 0
A102: Subtotal Other | E102: =SUM(E99:E101) -> 24,000 | F102: =E102/E110 -> 3.1% | G102: =G98 -> 0 | H102: 0 | I102: 0 | J102: 0 | K102: 0 | L102: 0 | M102: 0 | N102: 0 | O102: =O99 -> 24000
A103: 7. Subtotal direct eligible costs of the Action (1-6) | E103: =E102+E97+E80+E72+E59+E42 -> 689,100 | O103: =O102+O97+O80+O72+O59+O42 -> 689,100
A104: 8. Provision for contingency reserve (maximum 5% of 7, subtotal of direct eligible costs of the Action) | E104: 35,964 | G104: =E104/4 -> 8991 | H104: 16 | I104: =G104 -> 8991 | J104: 16 | K104: =E104/4 -> 8991 | L104: 16 | M104: =E104/4 -> 8991 | N104: 16 | O104: =G104+I104+K104+M104 -> 35964
A105: 9. Total direct eligible costs of the Action (7+ 8) | E105: =E103+E104 -> 725,064 | O105: =O103+O104 -> 725,064
A106: 10. Indirect costs (maximum 7% of 9, total direct eligible costs of the Action) | E106: 52,080 | G106: =E106/4 -> 13020 | H106: 1, 2,16 | I106: =E106/4 -> 13020 | J106: 2,16 | K106: =E106/4 -> 13020 | L106: 2,14,16 | M106: =E106/4 -> 13,020 | N106: 16, 14, 2 | O106: =G106+I106+K106+M106 -> 52,080
A107: 11. Total eligible costs (9+10) | E107: =E105+E106 -> 777,144 | O107: =O105+O106 -> 777,144
A108: 12. - Taxes 11
A109: - Contributions in kind 12
A110: 13. Total accepted11 costs of the Action (11+12) | E110: =E107 -> 777,144 | O110: =O107 -> 777,144
A111: Eu contribution | B111: 95.00% | C111: =E110*95/100 -> 738,287 | O111: =95*O110/100 -> 738,287
A112: ACMAD contribution | B112: 5.00% | C112: =E110*5/100 -> 38,857 | O112: =5*O110/100 -> 38,857
A113: Total 2015 Budget | B113: 1 | C113: =C112+C111 -> 777,144 | G113: =C113-763874.4 -> 13,269.6 | J113: =G113/(3*2) -> 2,212 | O113: =O111+O112 -> 777,144
E115: =655.957*C113 -> 509,773,047

Sheet meetinsevents20192020
B1: Event/Mission Title | C1: Dates/location | D1: Title and Objective of the event | E1: actions required | F1: comments | G1: status | H1: Funding | I1: Location of presentation made(file path or url)
A2: 1 | B2: 4th Meeting of GFCS_ACP Task team | C2: January 17-19, 2017 // Brussells-Belgium | D2: Comment on formulation study's inception report and share additional information on regional aspects of GFCS implementation | E2: Prepare travel authorization for ACMAD/DG and ACMAD/GFCS Focal point by ACMAD Secretariat with support of ACMAD-MESA admin&finance, Prepare and present ACMAD-MESA paper on RCC and Climate services for DRR by PM | F2: Priorities of AUC, RECS, AMCOMET strategy | G2: done | H2: ACMAD-MESA | I2: Computer namein the network:JBZaNDAHP G:\kamgaacmad\ACMAD2019\COP2019\PreliminarytechnotestateofclimateOct_2019.pptx | J2: This is only an example
A3: 2 | B3: 2nd MESA forum
A4: 3 | B4: ACMAD-MESA CSC-2
A5: 4 | B5: 2nd MESA forum second preparatory meeting
A6: 5 | B6: ACMAD-MESACONTR -2
A7: 6 | B7: WMO GFCS/CSIS workshop on CSIS operations and coordination
A8: 7 | B8: Meeting on GCF project formulation
A9: 8 | B9: RA I RAIDEG meeting extended to climate community
A10: 9 | B10: Meeting with Africa Risk View
A11: 10 | B11: online meetings of WMO/GFCS/CSIS/ICT
A12: 11 | B12: Meeting with GFCS regional coordinator for the Sahel
A13: 12 | B13: Consultation meeting with GFCS regional office and OCHA
A14: 13 | B14: Meeting with AAI follow up of CSC_2
A15: 14 | B15: PRESASS
A16: 15 | B16: skype meeting with SMHI on hydromet database
A17: 2 | B17: 2nd MESA forum
A18: 16 | B18: MESA 7th PSC
A19: 17 | B19: MESA TEM meeting
A20: 18 | B20: USAID/WIGOS Project meeting
A21: 19 | B21: USAID project Climate services meeting with NCEP
A22: 20 | B22: UNFCCC SBSTA meeting
A23: 21 | B23: 2 climate services regional trainings
A24: 22 | B24: PresAC
A25: 8 | B25: RA I RAIDEG meeting extended to climate community
A26: 9 | B26: MESA TEM meeting
A27: 10 | B27: PRESASS
A28: 11 | B28: GECEAO 11th conultation meetin
A30: 12 | B30: WMO International Workshop on Global Review of Regional Climate Outlook Forums,
A31: 13 | B31: 7th MESA PSC meeting
A32: 14 | B32: PRESAC / ACMAD/MESA regional training on climate Services for Central Africa
A33: 15 | B33: GFCS International Climate Training Workshop Sahel project
A34: 16 | B34: 11th African Working group on DRR and Steering meeting of ACP _EU programme on DRR
A35: 17 | B35: GHACOF
A36: 18 | B36: 3rd ACMAD/MESA Steering/end of project meeting

Sheet budgetinit
E1: 3years
A2: Costs | B2: Unit 13 | C2: # of units | D2: Unit rate | E2: Total Cost | F2: Unit | G2: # of units | H2: Unit rate | I2: Total Cost
D3: (in EUR) | E3: (in EUR)3 | H3: (in EUR) | I3: (in EUR)3 | J3: Q1 | L3: Q2 | N3: Q3 | P3: Q4
A4: 1. Human Resources
A5: 1.1 Salaries | B5: Per month | C5: =C6+C18 -> 365 | D5: 2,999 | E5: =E6+E18 -> 1,051,400 | F5: Per month | G5: 143 | H5: 3,055 | I5: =I6+I18 -> 351,300 | J5: =J6+J18 -> 176,550
A6: 1.1.1 Technical | B6: Per month | C6: =SUM(C7:C16) -> 239 | D6: =E6/C6 -> 2,914 | E6: =SUM(E7:E16) -> 696,500 | F6: Per month | G6: =SUM(G7:G16) -> 80 | H6: =I6/G6 -> 2,913 | I6: =SUM(I7:I16) -> 233,000 | J6: =SUM(J7:J16) -> 58250
A7: Senior Thematic Expert (ACMAD) - service 1 | B7: Per month | C7: 36 | D7: 3,500 | E7: =C7*D7 -> 126,000 | F7: Per month | G7: 12 | H7: 3,500 | I7: =G7*H7 -> 42,000 | J7: =I7/4 -> 10500 | K7: act 1, 3, 4 | L7: =J8 -> 10500 | M7: 1, 3, 4 | N7: =L7 -> 10500 | O7: 5 | P7: =N7 -> 10500
A8: Senior Thematic Expert (ACMAD) - service 2 | B8: Per month | C8: 36 | D8: 3,500 | E8: =C8*D8 -> 126,000 | F8: Per month | G8: 12 | H8: 3,500 | I8: =G8*H8 -> 42,000 | J8: =I8/4 -> 10500 | K8: act1,3,4 | L8: =J8 -> 10500 | M8: 1,;3;4 | N8: =L8 -> 10500 | O8: 5 | P8: =N8 -> 10500 | Q8: 6,
A9: System Engineer (ACMAD) | B9: Per month | C9: 36 | D9: 2,750 | E9: =C9*D9 -> 99,000 | F9: Per month | G9: 12 | H9: 2,750 | I9: =G9*H9 -> 33,000 | J9: =I9/4 -> 8250 | K9: act 1 | L9: =J9 -> 8250 | M9: act2 | N9: =L9 -> 8250 | O9: act2 | P9: =N9 -> 8250 | Q9: act 2
A10: Software Engineer + GIS Expert (ACMAD) | B10: Per month | C10: 36 | D10: 3,000 | E10: 108,000 | F10: Per month | G10: 12 | H10: 3,000 | I10: 36,000 | J10: 9000
A11: Partner - Université de Dakar - STE | B11: Per month | C11: 12 | D11: 2,500 | E11: 30,000 | F11: Per month | G11: 4 | H11: 2,500 | I11: 10,000 | J11: 2500
A12: Partner - University of Nairobi - STE | B12: Per month | C12: 12 | D12: 2,500 | E12: 30,000 | F12: Per month | G12: 4 | H12: 2,500 | I12: 10,000 | J12: 2500
A13: Partner - SADC-CSC/BDMS (RCC) - STE | B13: Per month | C13: 9 | D13: 2,500 | E13: 22,500 | F13: Per month | G13: 3 | H13: 2,500 | I13: 7,500 | J13: 1875
A14: Partner - AGRHYMET-RCC - STE | B14: Per month | C14: 9 | D14: 2,500 | E14: 22,500 | F14: Per month | G14: 3 | H14: 2,500 | I14: 7,500 | J14: 1875
A15: Partner - ICPAC - STE | B15: Per month | C15: 9 | D15: 2,500 | E15: 22,500 | F15: Per month | G15: 3 | H15: 2,500 | I15: 7,500 | J15: 1875
A16: Service Development - STE ACMAD / others Centers | B16: Per month | C16: 44 | D16: 2,500 | E16: 110,000 | F16: Per month | G16: 15 | H16: 2,500 | I16: 37,500 | J16: 9375
A18: 1.1.2 Administrative/ support staff | B18: Per month | C18: =SUM(C19:C22) -> 126 | D18: =E18/C18 -> 2,817 | E18: =SUM(E19:E22) -> 354,900 | F18: Per month | G18: =SUM(G19:G22) -> 42 | H18: =I18/G18 -> 2,817 | I18: =SUM(I19:I22) -> 118,300 | J18: =SUM(I19:I22) -> 118,300
A19: Project Manager (ACMAD) | B19: Per month | C19: 36 | D19: 3,650 | E19: =C19*D19 -> 131,400 | F19: Per month | G19: 12 | H19: 3,650 | I19: =G19*H19 -> 43,800 | J19: =I19/4 -> 10950
A20: Finance and Admin Officer (ACMAD) | B20: Per month | C20: 36 | D20: 2,750 | E20: =C20*D20 -> 99,000 | F20: Per month | G20: 12 | H20: 2,750 | I20: =G20*H20 -> 33,000 | J20: =I20/4 -> 8250
A21: Communication officer (ACMAD) | B21: Per month | C21: 24 | D21: 2,250 | E21: =C21*D21 -> 54,000 | F21: Per month | G21: 8 | H21: 2,250 | I21: =G21*H21 -> 18,000 | J21: =I21/4 -> 4500
A22: Support staff (Project Assistant, HR, driver, logistic officer, secretary ACMAD) | B22: Per month | C22: 30 | D22: 2,350 | E22: =C22*D22 -> 70,500 | F22: Per month | G22: 10 | H22: 2,350 | I22: =G22*H22 -> 23,500 | J22: =I22/4 -> 5875
A23: 1.2 Salaries expat/int. Staff or Abroad (staff assigned to the Action) | B23: Per month | C23: =C24 -> 0 | D23: =D24 -> 0 | E23: =E24 -> 0 | F23: Per month | G23: =G24 -> 0 | H23: =H24 -> 0 | I23: =I24 -> 0
A24: STE | B24: Per day | C24: 0 | D24: 0 | E24: 0 | F24: Per day | G24: 0 | H24: 0 | I24: 0
A25: 1.3 Per diems for missions/travel5 | C25: 1,658 | D25: 150 | E25: =+E26+E32+E33 -> 278,550 | G25: 330 | H25: 150 | I25: =+I26+I32+I33 -> 42,600
A26: 1.3.1 Abroad (Additional support for key areas) | B26: Per diem | C26: =SUM(C27:C30) -> 130 | D26: =E26/C26 -> 150 | E26: =SUM(E27:E30) -> 19,500 | F26: Per diem | G26: =SUM(G27:G30) -> 28 | H26: =I26/G26 -> 150 | I26: =SUM(I27:I30) -> 4,200
A27: Installation of Rx | B27: Per diem | C27: 0 | D27: 0 | E27: =C27*D27 -> 0 | F27: Per diem | G27: 0 | H27: 0 | I27: =G27*H27 -> 0
A28: Policy Makers Sentization | B28: Per diem | C28: 30 | D28: 150 | E28: =C28*D28 -> 4,500 | F28: Per diem | G28: 10 | H28: 150 | I28: =G28*H28 -> 1,500
A29: Ad-Hoc & On-the-job-training | B29: Per diem | C29: 50 | D29: 150 | E29: =C29*D29 -> 7,500 | F29: Per diem | G29: 0 | H29: 150 | I29: =G29*H29 -> 0
A30: Participation Fora (conferences, seminaires, etc) | B30: Per diem | C30: 50 | D30: 150 | E30: =C30*D30 -> 7,500 | F30: Per diem | G30: 18 | H30: 150 | I30: =G30*H30 -> 2,700
A32: 1.3.2 Local (staff assigned to the Action) | B32: Per diem | C32: 0 | D32: 0 | E32: 0 | F32: Per diem | G32: 0 | H32: 0 | I32: 0
A33: 1.3.3 Seminar/conference participants | B33: Per diem | C33: =SUM(C34:C40) -> 1,727 | D33: =E33/C33 -> 150 | E33: =SUM(E34:E40) -> 259,050 | F33: Per diem | G33: =SUM(G34:G40) -> 256 | H33: =I33/G33 -> 150 | I33: =SUM(I34:I40) -> 38,400
A34: Kick off Workshop + End of the project | B34: Per diem | C34: =25*7*2 -> 350 | D34: 150 | E34: =C34*D34 -> 52,500 | F34: Per diem | G34: =C34/2 -> 175 | H34: 150 | I34: =G34*H34 -> 26,250
A35: 2 Cont. Training Workshops by ACMAD | B35: Per diem | C35: =25*7*2 -> 350 | D35: 150 | E35: 52,500 | F35: Per diem | G35: 0 | H35: 150 | I35: 0
A36: 2 Reg. Training Workshops by AGRHYMET-RCC | B36: Per diem | C36: =22*7*2 -> 308 | D36: 150 | E36: 46,200 | F36: Per diem | G36: 0 | H36: 150 | I36: 0
A37: 2 Reg. Training Workshops by ICPAC | B37: Per diem | C37: =16*7*2 -> 224 | D37: 150 | E37: 33,600 | F37: Per diem | G37: 0 | H37: 150 | I37: 0
A38: 2 Reg. Training Workshops by SADC-CSC/BDMS | B38: Per diem | C38: =18*7*2 -> 252 | D38: 150 | E38: 37,800 | F38: Per diem | G38: 0 | H38: 150 | I38: 0
A39: STE - Workshop facilitator | B39: Per diem | C39: 0 | D39: 0 | E39: 0 | F39: Per diem | G39: 0 | H39: 0 | I39: 0
A40: ACMAD Thema Steering and working committee | B40: Per diem | C40: =(12+15)*3*3 -> 243 | D40: 150 | E40: 36,450 | F40: Per diem | G40: =C40/3 -> 81 | H40: 150 | I40: 12,150
A42: Subtotal Human Resources | E42: =E25+E23+E5 -> 1,329,950 | I42: =I25+I23+I5 -> 393,900
A43: 2. Travel6
A44: 2.1. International travel | B44: Per flight | C44: =SUM(C45:C56) -> 332 | D44: =E44/C44 -> 800 | E44: =SUM(E45:E56) -> 265,600 | F44: Per flight | G44: =SUM(G45:G56) -> 63 | H44: =I44/G44 -> 800 | I44: =SUM(I45:I56) -> 50,400
A45: Installation of Rx | B45: Per diem | C45: 0 | D45: 0 | E45: 0 | F45: Per diem | G45: 0 | H45: 0 | I45: 0
A46: Policy Makers Sentization | B46: Per flight | C46: 10 | D46: 800 | E46: =C46*D46 -> 8,000 | F46: Per flight | G46: 3 | H46: 800 | I46: =G46*H46 -> 2,400
A47: Ad-Hoc & On-the-job-training | B47: Per flight | C47: 20 | D47: 800 | E47: =C47*D47 -> 16,000 | F47: Per flight | G47: 0 | H47: 800 | I47: =G47*H47 -> 0
A48: Participation Fora (conferences, seminaires, etc) | B48: Per flight | C48: 9 | D48: 800 | E48: =C48*D48 -> 7,200 | F48: Per flight | G48: 3 | H48: 800 | I48: =G48*H48 -> 2,400
A50: Kick off Workshop + End of the project | B50: Per flight | C50: =25*2 -> 50 | D50: 800 | E50: =C50*D50 -> 40,000 | F50: Per flight | G50: =30 -> 30 | H50: 800 | I50: =G50*H50 -> 24,000
A51: 2 Cont. Training Workshops by ACMAD | B51: Per flight | C51: =25*2 -> 50 | D51: 800 | E51: 40,000 | F51: Per flight | G51: 0 | H51: 800 | I51: 0
A52: 2 Reg. Training Workshops by AGRHYMET-RCC | B52: Per flight | C52: =22*2 -> 44 | D52: 800 | E52: 35,200 | F52: Per flight | G52: 0 | H52: 800 | I52: 0
A53: 2 Reg. Training Workshops by ICPAC | B53: Per flight | C53: =16*2 -> 32 | D53: 800 | E53: 25,600 | F53: Per flight | G53: 0 | H53: 800 | I53: 0
A54: 2 Reg. Training Workshops by SADC-CSC/BDMS | B54: Per flight | C54: =18*2 -> 36 | D54: 800 | E54: 28,800 | F54: Per flight | G54: 0 | H54: 800 | I54: 0
A55: STE | B55: Per flight | C55: 0 | D55: 0 | E55: 0 | F55: Per flight | G55: 0 | H55: 0 | I55: 0
A56: ACMAD Thema Steering and working committee | B56: Per flight | C56: =(12+15)*3 -> 81 | D56: 800 | E56: 64,800 | F56: Per flight | G56: =C56/3 -> 27 | H56: 800 | I56: 21,600
A58: 2.2 Local transportation | B58: Per month | C58: 0 | D58: 150 | E58: 0 | F58: Per month | G58: 0 | H58: 150 | I58: 0
A59: Subtotal Travel | E59: =E44+E58 -> 265,600 | I59: =I44+I58 -> 50,400
A60: 3. Equipment and supplies7
A61: 3.1 Purchase or rent of vehicles | B61: Per vehicle | C61: 2 | D61: 30,000 | E61: =C61*D61 -> 60,000 | F61: Per vehicle | G61: 2 | H61: 30,000 | I61: =G61*H61 -> 60,000
A62: 3.2 Furniture, computer equipment | C62: =SUM(C63:C68) -> 21 | D62: =E62/C62 -> 2,976 | E62: =SUM(E63:E68) -> 62,500 | G62: =SUM(G63:G68) -> 8 | H62: =I62/G62 -> 4,938 | I62: =SUM(I63:I68) -> 39,500
A63: Personal Computers / Laptops | B63: Per Laptop | C63: 15 | D63: 800 | E63: =C63*D63 -> 12,000 | F63: Per Laptop | G63: 5 | H63: 800 | I63: =G63*H63 -> 4,000 | J63: =3200 -> 3200 | L63: 800
A64: Network / Telecommunications at ACMAD | B64: Per Unit | C64: 1 | D64: 10,500 | E64: 10,500 | F64: Per Unit | G64: 1 | H64: 10,500 | I64: 10,500 | J64: =D64/(3*4) -> 875 | L64: =J64 -> 875 | N64: =L64 -> 875 | P64: =N64 -> 875
A65: Backup and archive system | B65: Per Unit | C65: 1 | D65: 20,000 | E65: 20,000 | F65: Per Unit | G65: 1 | H65: 20,000 | I65: 20,000 | J65: =I65/(3*4) -> 1666.666667 | L65: =J65 -> 1666.666667 | N65: =L65 -> 1666.666667 | P65: =N65 -> 1666.666667
A66: Equipement/ materials (split, scanner, color printer, fax, photocopier..) | B66: Per year | C66: 3 | D66: 5,000 | E66: 15,000 | F66: Per year | G66: 1 | H66: 5,000 | I66: 5,000
A67: Power supply | B67: Per Unit | C67: 1 | D67: 5,000 | E67: 5,000 | F67: Per Unit | G67: 0 | H67: 5,000 | I67: 0
A68: Communicantion and reproduction equipment | B68: Per Unit | C68: 0 | D68: 0 | E68: 0 | F68: Per Unit | G68: 0 | H68: 0 | I68: 0
A69: 3.3 Machines, tools… | E69: 0 | I69: 0
A70: 3.4 Spare parts/equipment for machines, tools | E70: 0 | I70: 0
A71: 3.5 Other (please specify) | E71: 0 | I71: 0
A72: Subtotal Equipment and supplies | E72: =E61+E62+E69+E70+E71 -> 122,500 | I72: =I61+I62+I69+I70+I71 -> 99,500
A73: 4. Local office
A74: 4.1 Vehicle costs ( Maintenance & Insurance) | B74: Per year | C74: =SUM(C75:C76) -> 6 | D74: =E74/C74 -> 3,750 | E74: =SUM(E75:E76) -> 22,500 | F74: Per year | G74: =SUM(G75:G76) -> 2 | H74: =I74/G74 -> 3,750 | I74: =SUM(I75:I76) -> 7,500
A75: Maintenance, Insurance | B75: Per year | C75: 3 | D75: 2,500 | E75: =C75*D75 -> 7,500 | F75: Per year | G75: 1 | H75: 2,500 | I75: =G75*H75 -> 2,500
A76: Petrol | B76: Per year | C76: 3 | D76: 5,000 | E76: =C76*D76 -> 15,000 | F76: Per year | G76: 1 | H76: 5,000 | I76: =G76*H76 -> 5,000
A77: 4.2 Office Rent | B77: Per year | C77: 0 | D77: 0 | E77: 0 | F77: Per year | G77: 0 | H77: 0 | I77: 0
A78: 4.3 Consumables - office supplies | B78: Per year | C78: 3 | D78: 10,000 | E78: =C78*D78 -> 30,000 | F78: Per year | G78: 1 | H78: 10,000 | I78: =G78*H78 -> 10,000
A79: 4.4 Other services (tel/fax, electricity/cooling, maintenance of equipment) | B79: Per month | C79: 36 | D79: 1,600 | E79: =C79*D79 -> 57,600 | F79: Per month | G79: 12 | H79: 1,600 | I79: =G79*H79 -> 19,200
A80: Subtotal Local office | E80: =E74+E77+E78+E79 -> 110,100 | I80: =I74+I77+I78+I79 -> 36,700
A81: 5. Other costs, services8
A82: 5.1 Publications9
A83: 5.2 Studies, research9
A84: Internship/secondment | B84: per month | C84: 18 | D84: 1,600 | E84: =C84*D84 -> 28,800 | F84: Per year | G84: 6 | H84: 1,600 | I84: =G84*H84 -> 9,600
A85: 5.3 Expenditure verification | B85: Per audit | C85: 3 | D85: 7,000 | E85: =C85*D85 -> 21,000 | F85: Per audit | G85: 1 | H85: 7,000 | I85: =G85*H85 -> 7,000
A86: 5.4 Evaluation costs | B86: Per evaluation | C86: 3 | D86: 15,000 | E86: =C86*D86 -> 45,000 | F86: Per evaluation | G86: 1 | H86: 15,000 | I86: =G86*H86 -> 15,000
A87: 5.5 Translation, interpreters and equipment | B87: Per event/day | C87: 60 | D87: 1,100 | E87: =C87*D87 -> 66,000 | F87: Per event/day | G87: 20 | H87: 1,100 | I87: =G87*H87 -> 22,000
A88: 5.6 Financial services (currency change, tranfer fees, bank services) | B88: Per year | C88: 3 | D88: 1,000 | E88: =C88*D88 -> 3,000 | F88: Per year | G88: 1 | H88: 1,000 | I88: =G88*H88 -> 1,000
A89: 5.7 Costs of conferences/seminars9 | B89: Per event | C89: =SUM(C90:C95) -> 13 | D89: =E89/C89 -> 5,000 | E89: =SUM(E90:E95) -> 65,000 | F89: Per event | G89: =SUM(G90:G95) -> 2 | H89: =I89/G89 -> 5,000 | I89: =SUM(I90:I95) -> 10,000
A90: Kick off Workshop + End of the project | B90: Per event | C90: 2 | D90: 5,000 | E90: =C90*D90 -> 10,000 | F90: Per event | G90: 1 | H90: 5,000 | I90: =G90*H90 -> 5,000
A91: 2 Cont. Training workshops by ACMAD | B91: Per event | C91: 2 | D91: 5,000 | E91: 10,000 | F91: Per event | G91: 0 | H91: 5,000 | I91: 0
A92: 2 Reg. Training workshops by AGRHYMET-RCC | B92: Per event | C92: 2 | D92: 5,000 | E92: 10,000 | F92: Per event | G92: 0 | H92: 5,000 | I92: 0
A93: 2 Reg. Training workshops by ICPAC | B93: Per event | C93: 2 | D93: 5,000 | E93: 10,000 | F93: Per event | G93: 0 | H93: 5,000 | I93: 0
A94: 2 Reg. Training workshops by SADC-CSC/BDMS | B94: Per event | C94: 2 | D94: 5,000 | E94: 10,000 | F94: Per event | G94: 0 | H94: 5,000 | I94: 0
A95: ACMAD Thema Steering and working committee | B95: Per event | C95: 3 | D95: 5,000 | E95: 15,000 | F95: Per event | G95: 1 | H95: 5,000 | I95: 5,000
A96: 5.8. Visibility actions10 | C96: 3 | D96: 20,000 | E96: 60,000 | G96: 1 | H96: 20,000 | I96: 20,000
A97: Subtotal Other costs, services | E97: =SUM(E82:E89)+E96 -> 288,800 | I97: =SUM(I82:I89)+I96 -> 84,600
A98: 6. Other | C98: =SUM(C99:C101) -> 20 | D98: =E98/C98 -> 2,000 | E98: =SUM(E99:E101) -> 40,000 | G98: =SUM(G99:G101) -> 12 | H98: =I98/G98 -> 2,000 | I98: =SUM(I99:I101) -> 24,000
A99: Other - Recruitment costs | B99: Per recruitment | C99: 20 | D99: 2,000 | E99: =C99*D99 -> 40,000 | F99: Per recruitment | G99: 12 | H99: 2,000 | I99: =G99*H99 -> 24,000
A100: Other - Validation- Climate Change Assessment Service | C100: 0 | D100: 0 | E100: =C100*D100 -> 0 | G100: 0 | H100: 0 | I100: =G100*H100 -> 0
A101: Other - Validation- Drought Service | C101: 0 | D101: 0 | E101: =C101*D101 -> 0 | G101: 0 | H101: 0 | I101: =G101*H101 -> 0
A102: Subtotal Other | E102: =E98 -> 40,000 | I102: =I98 -> 24,000
A103: 7. Subtotal direct eligible costs of the Action (1-6) | E103: =E102+E97+E80+E72+E59+E42 -> 2,156,950 | I103: =I102+I97+I80+I72+I59+I42 -> 689,100
A104: 8. Provision for contingency reserve (maximum 5% of 7, subtotal of direct eligible costs of the Action) | E104: =E103*5% -> 107,848 | I104: =E104/3 -> 35,949
A105: 9. Total direct eligible costs of the Action (7+ 8) | E105: =E103+E104 -> 2,264,798 | I105: =I103+I104 -> 725,049
A106: 10. Indirect costs (maximum 7% of 9, total direct eligible costs of the Action) | E106: 156,255 | I106: =E106/3 -> 52,085 | J106: =J9 -> 8250 | L106: =J106/2 -> 4125 | N106: =J106*0.2 -> 1650 | P106: 0
A107: 11. Total eligible costs (9+10) | E107: =E105+E106 -> 2,421,053 | I107: =I105+I106 -> 777,134
A108: 12. - Taxes 11
A109: - Contributions in kind 12
A110: 13. Total accepted11 costs of the Action (11+12) | E110: =SUM(E107:E109) -> 2,421,053
C111: Contribution ACMAD | E111: =E107*0.05 -> 121,053 | F111: =E111/E107 -> 5.00%
C112: Contribution EC | E112: =E107*0.95 -> 2,300,000 | F112: =E112/E107 -> 95.00%

Sheet mydiary2018
A1: Jan 10 2018 | B1: Dear Dr. MacKenzie, We are delighted to share with you our achievements and perspectives on early warning systems for health. Achievements Over the past years, we have been active generating and disseminating malaria and meningitis vigilance products. These products were built on findings of WHO initiatives with the Roll Back Malaria and MERIT (on meningitis) projects. These products are being used by regional and national diseases surveillance and control structures. The meningitis vigilance product ( a sample is attached herein) is regularly used by the Ministry of health in Niger. Perspectives - Sharing this pilot effort on meningitis in Niger with all countries of the African meningitis belt; - Supporting review and update of national health strategies and plans to include mainstreaming climate services in operational diseases surveillance and control systems; - Supporting demonstration projects to further integrate climate watches and warnings in regional and national operational diseases surveillance and control systems; - Training countries experts to generate and use vigilance products; - Improve current understanding of climate impacts on health
B2: Roadmap for GFCS ACP Grant preparation and submission The meeting agreed the following roadmap, which is in line with the one agreed in Geneva: - Region to request for support for grant preparation to ACP Sec or EU Del, as soon as possible - January -February – Drafting - March - interaction with EUM, JRC and WMO, with copy to AUC - 31 March -> submission to ACP Secretariat and DEVCO - Q2 -> ACP final consolidation meeting (contingent to necessity and funding) - May 2018 -> Official submission to ACP Secretariat and DEVCO - Q3/Q4 -> contract preparation / negotiation - End of 2018 -> Signature of the Grants
B3: Contribution to draft CSIS manual submitted on Jan 07 to ICT for CSIS
B4: Financial reporting USAID to WMIO Dear All, as anticipated please see request from WMO finance to please provide interim statements of expenditures up to 31 December 2017 using attached template and certified by your finance officer. You can send it by email to me by 10 January and I will share it with WMO finance dept. In addition, as mentioned before for our annual reporting to the donor please also provide the project progress report. Many thanks and Happy holidays to all of you,
B5: inputs in the draft mid term report as of July 2017 for usaid project sent to veronica
A6: Jan 08 2018 | B6: Concept note for the training USAID project 6 to 9 February 2018
A8: Jan 09 2018 | B8: inputs on maps and graphs in the draft climate meningitis bulletin of the NFCS WG on climate and health in Niger, prepare progress report on the USAID project
B9: supervision meeting with NRC deployee Bob he is to contact Kumar on the automatization of processes, review technical notes for publication on the website from Sept to Dec 2017, prepare annual cycle of precipitation to monitor drought as new products designed and developped for USAID project, attend meeting at Ministry of health to valide climate and health monitoring bulletin,
B10: Anouncement and call for participation for the feb 2017 ToT prepared and disseminated for inputs and comments,
B11: supervision meeting with boubacar bachir he should prepare procedures to operate the data rescue module, develop wis compatible maps , graphs, tables,
A12: Jan 10 2018 | B12: meet with GIS expert Bachir to highlight the product catalogue to be prepared for Bachir Boubacar
B13: Review weekly report starting on week 49
B14: review statement of expenditure of USAID project for the second semester of 2018
B15: weekly reports and timeshets prepared until week 52 ending on January 07 2018
B16: start preparation of presentation for the Africa needs for clilate services for a meeting to be help in Ispra Italy at JRC premises on Jan 18 to 19 2018 on the needs and specificationsof the climate station to be developed by JRC under GFCS ACP programme on climate services and related applications. The meeting will use past cooperation between ACMAd, JRC, EUMETSAT, DWD on MESA, review existing tools in CSIS CST, C3S tools and Climate SAF
A17: 2011-01-01 | B17: attend a meeting of the Climate group of the National Framework for Climate Services in Niger at DMN for USAID project
B18: Last meeting Tors and report, the last meeting validated ToRs of WGs, Leads of each WGs were identified to coordinate activities, list or resource persons were done with a copy of ministerial decree on the framework wich highlights the WGs,
B19: ACMAD submitted a guidelines for developing a climate service, DRR WG had one meeting, Climate and health group is publishing the first bulletin,
B20: continue to prepare ispra meeting with dec technical note and list of inputs products with Bob
B21: attend recruitment meeting for sawidra modelling expert 16h30
A22: 2012-01-01 | B22: Finalize and submit draft progress report until dec 2017 to Veronica, continue to prepare paper for climate station meeting
B23: verify and sign bank reconciliation, cash flow reconciliation, journals
B24: supervise website and datarescue module testing with bachir, solly and justin Mbah
A25: 2015-01-01 | B25: continue preparation of the presentation of Africa needs and requirements for the climate service stataton (JRC&EMETSAT&ACMAd&ECMWF&DWD&RCCeurope cooperation
B26: update anouncement of NFCS training follwing the frisay 12 january afternoon meeting with Doouda Yahaya and pascal yaka
B27: Presentation of the semester 2 progress report, bob to provide drought monitoring, climonitoring service and long range forecasting services training manual including standing operating procedures, Bob will make a presentation of the drought monitoring by end of January 2018
B29: Bob involved in operational production of technical note, bulletin and statement,
A30: Jan 16 to 20 2018 | B30: travel and attendance of the technical meeting on the definition and specification of the climate service station using ACMAD MESA and CSIRS methods and tools, C3S and CM SAF toolbox, ACMAD to have 2 missions by May 2018 at JRC for week to continue specification of the station, at ECMWF use python and test the CDS and continue specification of the station
A31: 2022-01-01 | B31: Review WMO manual with WMO BIP, exchange through a supervision meeting with staff on the CSIRS website, content management
A32: Jan 23 2017 | B32: prepare report for the mission on the climate station definition and specification at JRC Italy
B33: Recontact Mackenzie from UCAR for skype exchange
A34: Jan 24 2018 | B34: meeting with agrhymet on presagg and presass, funding expected from agrhymet and tinni attend briefings at acmad,
B35: presass tentative April 23 to 27, april 30 to 04 May or 07 tio 11 May , Presagg March 05 to 12 2018
A36: 2025-01-01 | B36: finalize and disseminate the JRC meeting report on CSS with way forward, actions and timeline
B37: exchange with pascal veronica and felipe on his participation to the training in february, prepare invitation letter, follow up exchange on pascal and Daouda's roles at the training
B38: collaborate with Barcelona dust centre to access nc file , grads and cdo used by Bob to convert nc to text file, Bachir to use R to convert nc to text
B39: introduce python to prepare for CDS
B40: Briefing on SSTs identification of analog years for FMA and MAM 2018 with 2009, 2012*, 2006; 2001**, 1996
B41: Weak to moderate Lania observed in Jan 2018 expected to weaken leading to ENSO neutral during the coming 5 to 6 months
A42: 2026-01-01 | B42: start prepare weekly report at week 53 ending on Jan 07
B43: recoonect with Mac kenzie Dove at NCAR, discuss superimposition of parameter and its anomaly on the same map for analyses
B44: meet with Bob on Monday to stabilize training manual for drought , long range forecasting at National level, ensure practical procedures to generate each product is available as annex, discuss automatic scripts to generate pressuree and orther parameters with anomalies on the same map calling Grads
A45: 2029-01-01 | B45: contact JN Thepaux for CDS, contact christine CMSAF for expansion of CM SAF climate monitoring/assessmen function
B46: Read the concep note and invitiation for resilient infrastructure in the Sahel
B47: Ligth rain: 5_20 mm, moderate rain: 20_50 mm/day, Heavy rain 50_100 mm/day very heavy rain above 100mm/day from WO guidance document
A48: 1930-01-01 | B48: briefing on drought monitoring and long range forecasting training manual
B49: review status of responses to invitation letters to designate participants for the feb 2018 USAID training, review budget draft
B50: Bob met and advances made on training manual, some maps and graphs to be updated including precip and Lead Centre long range forecasts
B51: read impact 2C final report to get methodology useful or GFCS ACP
B52: read the pytthon training manual for cpernicus CDS test phase with ECMWF
B53: train gedeon, bachir, bob and hubert on annual cycle of precipitation graphs
B54: briefing 1 for FMA and MAM 2018rget season, trend positive precip in north Africa western mediteranee in northern Morroco o and wesrtern coastal algerial and coastal Tunisia
B55: weak positive trend wet of ghana in cote ivt of Ghana xx and weak negative trend east of ghana
B56: significant positive precipitation trend in northern DRC,
B57: 50 per below along the coasts of congo and angola, 50 percent below over northern DRC for FMA and MAM reduce below average to 40 over coastan cono, angola , mozambique and south africa,
B58: La Nina watch with maximum sst towards de date line, tropical NA positive, Eq atl positive , trop south atl negative as well as off coast of GHA and SADC in the Indian Ocean,
B59: Moderate La nina on weakly sst, TSA neutral negative will evolve toward negative, TNA positive will persit
B60: costal mozambique and south africa below and above over coastal namibia and angola 40 percent above precip
B61: analog years 1996**, 2001**, 2006*, 2009*, 2012****
B62: analog for north Africa 2006, 2017
B63: West africa 2006, 1996, 2017; Central africa 2012, 1996, 2006, SADC 2012 for coastal atlantic and 2006 for coastal indian ocean, over GHA 2006, 1996; 2001
A64: Feb 01 2018 | B64: prepare the paper on climate services for resilient infrastructure for the African Climate Resilient Infrastructure Summit ( ACRIS III) Feb 27 and 28 2018
A66: Feb 02 2018 | B66: read the python i/o, data structure … Chapetr in preparation of the copenicus C3C meeting on CDS
A68: Feb 05 2018 | B68: Review the Barcelona center email on jan 30 on dust data in grib 2 format and respond
B69: read the climate watch guidelines in climatestation directory
B70: Recontact acriss organizers for participation letter to ACMAD DG
B71: Read the report on AU_EU partnership on science by JRC
B72: Seminar on Risk Perception, vulnerability&communication for extreme weather events online at NCAR by Kevin Ass Advanced study prograll MMM/RAL
B73: distinguish tornado and hurricanes
B74: review and update weekly report of Gedeon
A75: Feb 07 | B75: Request of annual cycle for cape tow were water reservoir are 25 percent filled for 2017, 2016, 2015, 2014 , read reports from AMS on Cape town water problems due to drought
B76: read on accreditation, certification , outline of the BAMS paper on CSIS incliding CST , prepare response to wmo on participation to CCL and TECO
B77: review RARS rexpression of interest candidates aplication assesment report
A78: feb 08! | B78: finalize technical note, prepare paper for acris iii, prepare presentation for next week training
B79: review and edit project website with solly, organinize a meeting with all to assess progress on the website development
A80: Feb 09 | B80: meeting and finalize the ToT training programme with yaka, daouda
B81: meeting with ADG who introduczed SWIFT funded by UK and SFR Racine network of scientists in Niamey
B82: improve acmad communication, coordination meetings, financial reporting coordination, IT involvment, payment of tax by local experts, andre introduced people on next week's USAID project training next week,
B83: information given on afdb support for continuation of MESA, adg indicates that sawidra funding would be used to continue MESA continuation, climate component of sawidra it will be called, hydromet, EDF GFCS ACP, USAID climate services, SAWIDRA climate services, SERVIR project to recruit drr person for sawidra and build rars receiving station at new acmad site,
A84: Feb 12 | B84: presentation of the drought module and ppt for ToT by Bob wth review and edite by Andre
B85: review budget for the ToT starting tomorow and sign vouchers for payment of per diems, flights tickets and cost of conference that is coffee breaks
B86: read the world Bank Africa Climate Business Plan
B87: Speaker Info ACRISSIII: Recent droughts observations and impacts in Africa: the challenge of moving from current late response to effective prevention and preparation using climate services
A88: Feb 13 | B88: Mot du ADG Lamptey, allocution du representant de la coordination régionale GFCS, demandes des états pour mettre en place le CNSC et l'équipe de coordination est réduite pour assurer ces demandes, c'est pourquoi ACMAD et AGRHYMET sont solliciter pour aider, Pacal Yaka a remercié les participants et ACMAD pour les efforts et les défis du continent,
B89: presentation des objectifs, du guide de developpement de services et 2 exemples de services pour la surveillance dela memingite et la sécherresse pour la DRR
B90: where and with what intensity for expected miningitis outbreak ? Meningitis data from WHO to ACMAD and ACMAD use for forecasting,
B91: Faire valider le guide pour le plan de développement des services, utiliser el guide pour juste etendre les fonctionalités du GTP, et s'appuyer sur l'expérience du GTP pour developper les autres services sectoruiels,
B92: recommendation apres la consultation nationale, le DMN a travers son Ministre fait un point de présentation du plan en conseil de ministre, la feille de route pour le suivi, ls sommes proposées pour les consultants afin de realiser les plan d'action de 5000 dollars est très limitée, le casting des consultants est à parfaire, il faut etre précis sur les requirements,
B93: mauvaise experience les consultants non meteo font des documents à refaire, Un cadre avec un plan régional d'action pour contribuer
B94: Exemple l'achat de calculateurs pour faire les traitements au niveau regional pour entretien et l'exploitation, au niveau regional cela facilite l'éhnage des données et des produits avec les pays
A95: Feb 16 | B95: Review and sign timeheets and paiyment vouchers
A96: Feb 19 2018 | B96: meeting with a AFDB mission on assessment of national agriculture statistics required for strategic planning to improve these statistics
B97: list of contracts ( personnel, works, services, supply…) in USAID project to be made by Lambert
B98: review and edit the draft report of the ToT event last week , review financial statements for Dec and Jan 2018
B99: add section description in the introduction, add listion, , add the list of criteria for service operationalization, …
A100: Feb 22 to 23 2018 | B100: meeting with IRD on SFR Racine a network for research on resilience of agro ecosystems
B101: oresentation of sft racine by IRD to gather scientists on resilience, climate change impacts on agro ecosystems, Conrext in Niger University, AGRHYMET, NBA, ACMAD with expertise that need to be interconnected, Observatories and isolated researchers little sustainability, students and scientists at universities but no technician and enginners, plans for climate resilience for Chad and Niger Basins, SFR to provide visibility to individual actions showing complementarity and exposure
B102: Objective to have a scientific community active on research
B103: priorities include climate and ecosystem, sustainable resource management, cross cutting theme on training, expertise, capitatlisation and ressources,
B104: 2 briefing on MAM and AMJ 2018 seasonal climate outlook with hubert
B105: trend for MAM and AMJ indicates sligth positive trend up to 10mm/decade in Sierra Leonne, south of guinea and Liberria, positive trend over south soudan, CAR and northern DRC and coastal part of Gabon and Congo, coastal south Tanzania and northernmost Mozambique as well as northern half of madagascar, negative trend over central and eastern Nigeria, Central tanzania, Kenye, Ethiopia and Somalia, most of south Africa and southern half of Mozambique, coastal northern Angola and DRC
B106: MJO analysis indicates favorable MJO over Africa in late february with rossby wave leading to early to normal onset in the Gulf of Guinea
B107: profile above in coastal congo, deficit in botswana, Lesotho northern half of Mdagascar above, southern Half of Madagascar below, Northern Mozambique above, Central Namibia below with botswana, La reunion above, central south africa deficit, Tunisia near to below average precip,
A108: Feb 26 | B108: draft inputs, read, review and edit the cliimate and meningitis vigilance nà2 for Niger, review draft technical note for the state of climate report in Africa for 2017, draft ToRs for recruitment of consulatant on training materials for UASAId project
B109: purpuse of ACRIS given at the opening ceremony, by 2060 up to 60% african will live in cities, integrate climate change in planning is essential, stakeholder will discuss to prepare for a more resilient infrastructure, networking opportunity is unparallell, thank to host ministry , AUC and event sponsors, the chair then introduced Morocco ministry of energy, he mentioned about 100 ports, airports in construction in Africa, Many existing ports, airports, roads in Africa are up to 50 years old and need maintenance and reports, Africa also need to develop services to operate these infrastructures , ingenierie de gestion des resources humaines, proposer des systeme d'esploitation des infrastructures pour justifier le financement,
B110: The middle class in Africa requires services they may spend $500 dollars for month and need education, health services operating on infrastructures, for GHG emission china 23§, USA 19% and very little for Africa who face drought, dertification,
B111: Veille technologique pour identifeir les technologies moins chers et avec des couts d'exploitaton/maintenance limitées
B112: Natchigal power plan is a standadrd for public private partnership, unleash the private sector and practical solutions by World Bank, Bonds green ones, pension funds to invest in infrastructure assets
A113: Feb 27 | B113: attend sessions , ask question on the framework for resilience to include planning, design, build, operate and maintain infrastructure
B114: Dear Andre KAMGA FOAMOUHOUE, Our 3rd Africa Climate Resilient Infrastructure Summit (ACRIS III) is underway, with our 'ice-breaker' Evening Reception at the Pullman Palmeraie Hotel; we hope you can join us! As previously discussed and detailed within our original invitation, event delegates have been busy requesting introductory 15 minute 1-2-1 matchmaking meetings with you, our delegation of ACRIS III officials. A summary of your initial meetings are detailed below (also attached) with all meetings being held within the Pullman's Koutoubia Ballroom, starting sharp at 4:30pm on Tuesday 27th February.
B115: 27-Feb-2018 afternoon meetings with delegations schedule Start Time End Time Organisation 16:45 17:00 Global Parametrics 17:30 17:45 AETS 18:30 18:45 GECI ESPANOLA, S.A.
B116: Mr. Andre Kamga Foamouhoue, Chief of Climate and Environment Department, African Centre for Meteorological Applications for Development Q: ACMAD as the continent wide program that works with regional and global partner has a fair amount of responsibility to deliver climate predictions? Question – are you (ACMAD) able to meet this challenge in the face of ever increasing demands (with increased frequency of extreme events? What do you see as the top 2 challenges, and how would you do things differently? (Come back question(s) – What do you say to national institutions who say they want their own capacities and skills?, ) What do you see as the role of academia/research in supporting climate resilient infrastructure development decisions? What challenges have you experienced engaging with academia/research in this area?
B117: control with solly the tech note, bulletin and synthesis for policy since sept 2017 on the off line website
B118: my weekly reports and tiemessheets preparation starting on week 57
B119: contribute with inputs on the brief for policy makers valid from MAMJ 2018 hazards include persistence of drought in SADC, expected drought in GHA, heavy rains in parts of central Africa, early onset in the gUlf of Guinea,
A120: March 05 2018 | B120: tasks for Lambert this week, prepare payments for local per diems for July 2017 Training, payment of hubert ticket to pregec, payment of serges invoces for coffe breaks related to 3 meetings including Jan 2017, July 2017 training and TOT of Jan éà&è meetin and Feb 2018, tickets for participants to ToT from Senegal and Burkina Faso, control justif document MESA from ICPAC, analyze the checklist for preparation of audit using gilles and cillss expert support, financial statements for Feb 2018
A121: March 06 and 07 2018 | B121: finalize the brief for policy makers MAMJ 2018 get ready for publication,
B122: draft concept paper for climate component of SAWIDRA ACMAD
B123: review and sign timesheets and weekly reports
B124: review input data, products, services catalogue, review and chech quality of brief for MAMJ 2018 and submit for web publication
B125: submit concept to sustain climate services to AfDB
B126: need to submit application for Afdb post
A127: March 08 | B127: download and get the LoA amendement signed and sent to WMO
B128: visit my google email in the afternoon and correct , check quality and approve the report of TOT on NFCS
B129: discuss with Bachir orange on the testing of archives for daily registers, monthly climate summaries, scanning, digitization, catalogue of input data, products, and climate services
B130: presentation by bob and review of the draft stae of climate in 2017, the cover page picture should be adjusted with mudslides
A131: March 12 | B131: participate to defriefieng made by hubert on PRESAGG,
B132: final review of state of climate in 2017, Bob to prepare an operational procedure for state of climate products generation
A133: March 13 2018 | B133: start prepare WMO day on climate smart and weather ready with DMN, stand on climate change, GFCS climate meningitis service, ACMAD's support to DMN , intraseasonal forecasts discussion for the dekadal bulletins
B134: review and guide to Lambert and the collection of justification of expences from ICPAC, AGRHYMET ….
B135: meeting to discuss future after USAID project, a concept was review for submission to Justus and email to ADG was sent by me with the draft concept attached
A136: March 14 2017 | B136: meeting on database, Geoserver, website with Bachir, Justin and solly
B137: data rescues with TCM, last page of TCM to develop by Friday March 15 3018, manual d'utilisation
B138: daily registers table of special observations and the last section to be added, all reports including user manual to be reviewed and finalized next week,
B139: Geoserver to be deployed and installed with solly , updates of website of usaid in the network of acmad by solly,
B141: !!!!see bob tomorrow to complete the input data catalogue and products catalogue as well as the service catalogue ( done below)
A142: march 15 2018 | B142: meeting with bob hold, he will freeze the sample state of climate report for Niger and related procedure manual and concentrate on input data catalogue for the dekadal climate diagnostic service, products catalogue for the dekadal climate diagnostics service and catalogue of climate service dateline on Friday 16 March 2018
B143: Read the theme of this years AMS 99th annual meeting on " 2019 Theme: "Understanding and Building Resilience to Extreme Events by Being Interdisciplinary, International, and Inclusive (III)"
B144: Being Interdisciplinary, International, and Inclusive (III)" Analyses by reinsurance companies have clearly shown the monotonically increasing cost of extreme events. There are a number of interrelated factors that have contributed to this increased vulnerability. For example, sea level rise combined with the migration of people to coastal regions exacerbates the impacts of hurricane/typhoon landfall and tsunamis, the interdependent nature of the energy grid with other infrastructure and our increasing reliance on technology would lead to a cascading negative effect if a major space weather event or other natural hazard were to occur, changes in climate have led to more frequent water extremes from flooding to drought conditions that significantly impact energy and food production, and the increasing number of wildfires has destroyed large regions of forests and buildings while also enhancing the risk of landslides and contributing to extreme air pollution events. Finally, urban-to-regional-scale air pollution episodes can be particularly hazardous under severe meteorological stagnation events. Interdisciplinary The need for improving our fundamental understanding and prediction of extreme events in a changing climate is a high priority but it is also clear that these problems are inherently interdisciplinary and require approaches that support what has been described as convergence. A recent National Academy of Sciences, Engineering, and Medicine report referred to convergence as relying “on forming a web of partnerships to support boundary-crossing research and to translate advances into new products.” Social scientists and other stakeholders must be included in the conversation from the start in order to understand each other’s “language” before creating a set of shared goals. International Increasing understanding and building resilience to extreme events are international imperatives. Collaborating with other countries brings the collective expertise of the science and engineering communities from around the world to tackle some of the most important and shared problems facing society (see list above). Inclusive Increasing diversity is a national imperative. Research by psychologists, sociologists, economists, and demographers has shown that diverse groups are more innovative than homogeneous groups and are better at solving complex problems. In addition lower income, underrepresented groups often suffer the most during an extreme event such as a heat wave, flooding (especially in urban regions), tornadoes moving through regions dominated by the presence of mobile homes, or rapidly eroding coastlines forcing mass migration, which is a situation currently impacting the indigenous people of Alaska. Observational and modeling studies related to improving both our understanding of the fundamental processes that lead to extreme events and predictability are encouraged.The impact of a changing climate on extreme events will be highlighted. There will be sessions that provide illustrative examples of successful convergent research from multiple disciplines and approaches to obtain funding for interdisciplinary work. Efforts to build resilience, improve communication, provide decision support for extreme events, and work closely with municipal city managers and emergency responders will be highlighted. International partnerships that address research and applications on extreme events and efforts to increase diversity in the weather enterprise, including training the next generation of scientists and engineers, are major thrusts under this theme.
B145: review brief for pocicy for OCHA with Huvbert, a standadrd operating procedure to digitatile long range forecast will be made by hubert next week
A146: March 19 2018 | B146: Travel to addis for ECA workshop on Socio economic benefits of CIS for DRR sector
A147: March 20 | B147: opening ceremony and presentation of the programme by WISERCoordinator /ACPC
B148: Introduction by murombesi ACPAC acting director,
B149: investment in climate services in budget is very low, meteorology underfunded and not included in decision making
B150: need systems to incentivize policy makers to invest in cis and its mainstreaming in policies, profgrammes and practices, hypothesis for every dollar invested a significant amount is gained in returns, relate losses to climate disruptions can be done with the model to be presented, the models should be further developped, time lag between climate and impacts is long, interogate the model and how to improve it, this meeting should look at weakness, deficiencies and how to customize the model
B151: introduction of participants,
B152: chair enerst afiesimana to chairmanship, he completed a project in ethiopia on using climate information to support agriculture, 35% increase in production and 38% increase
B153: Need for investment in climate information , instrument for DRR are also limited,
B154: Brad garanganga made a presentation, on introduction to socio economic benefits of CIS, basic overview on the subject in Africa and the world. Outline include Global cost of disasters, Hydromet hazards, Forecasts verification, cost of disaster increases 15 fold from 1950 to 1990s. Economic losses up to US$66 billions on average per year equivalent to .7 GDP, developing countries GDP losses above 10%, Floods, epidemics , droughts are the most impacting hazards with drougth casualities in Africa up to 70%, exposure and vulerability of communities combined with hazards lead to high risks, Early warnings are known to help reduce impacts, Droughts of 80s cost hundred thousands of deaths, up to 1 billion losses in south Africa. CIS provides benefits including agric production, boosting GDP, little adavantage is taken by communities to good climate conditions because of low investments in hydromet services, needs: invest in EWS and contingency planning, over 90% of disasters in Africa are due to natural hazards, monitoring of climatic trends, generating forecasts from minutes to decades are essential, Forecasts have been verified for different timescales, Over SADC on seasonal forecasts since 2000 hit rates moves from 60% to about 80% in 2015, False alarm moved from 40% to less than 10%, Emerging opportunities for NMHSs include the Sendai framework with a new paradigm to strengthen preparation with investments in MEWS, comments from UNISDR highliting additional sources of information for the overview indicating that there is Africa status report launched in Mauritius, he mentioned the international disaster base , ISDR assigned 3 SDGs, the Africa programme of Action for DRR linked to Sendai framework, South Sudan mentioned the need to update information provided, Brad responded and took note of the comments made
B155: Presentation 2 by george on the tools starting with policy intervention and look at effects of these interventions, direct and indirect benefits , look on impacts on households, businesses and governments, distinguish immediate impacts and emerginging ones overtime, the approach include 3 aspects: - investment on CIS, costs of refixing road for example, benefits like employement and household income. Not a lot investments in climate services , little look at the cost avoided with CIS , if 20 million is invested the return time may be several year up to a decade.
B156: il y a 2 ans ACMAD envoyait des infos sur le climat, il a cessé de maintenir les info fourni pour l'agriculture , ne faut il pas envisager relancer ce programme,? Mme Yap Abdou Dir protection civile cameroun les recommendations des grandes réunions sont difficiles à appliquer dans les pays, les pays sont plus portés vers la sécurité et peu en sécurité civile, les produits ACMAD ne sont pas accompagner d'un dispositif pour tirer profit des informations, Burkina dit qu'il y a des efforts de la météo qui donne des prévisions qui ne croisent pas avec les produits hydrologiques ( lnecessité que e GFCS mis en oeuvre dans les pays assure la coordination avec croisement des infos),
B157: new approach may include opportunity costs in the assessment to convince policy makers, how avoided cost is estimated and pertinent , recommend to try methods for SEB and make the tool apply in different institutions, open with pilot projects on SEB, the language should be understandable to policy makers, Brad responded with the need to develop how we communicate and strenthen partnerships
B158: questions: why use exponential instead of logarithmic functions for impact assessment of floods
A159: March 20 to 23 | B159: attend SEB of CIS meeting 20 and 21, climate talks and exchange of experiences on RCOFs on 22 and 23
B160: email from WMO with ccl 17 date Ccl on 10 and 13 April and TECO on 11 and 12 April i and marina to present CST
A161: march 24 | B161: back from addis after SEB, RCOFs coordinataion, SEB meeting, climate talks
B162: draft proposal intra acp GFCS for ECCASS and ACP
A163: March 26 to 27 | B163: Budget execution statement for usaid reviewed and submited with proposed modification for WMO Veronica
B164: train climate expert on MJO, Kevib, Rossby and production of technical note for dakadal climate monitoring and week 1 to weeK 2 outlooks
B165: sign vouchers for payments usaid project
A166: April 03 2018 | B166: organize briefing for AMJ and MJJ 2018 , review technical note, attend the national CREWS with paper on ACMAD contribution to iplementation with training on cliamte forecats for updating contingency plans, integrated drought monitoring, hazards outlooks and scenrios, capacity building for NMHSs of Niger in collaboration with OCHA
A167: April 04 2018 | B167: visit AMS website with statement on the use of the term meteorologists, continue briefintg
B168: Prepare paper for ccl2018 Climqte Service Toolkit and CISIS
B169: Review ccl presentation on Climate Service Toolkit
A170: 2018-04-05 | B170: repare the DSF bulletig for AJ and MJJ 2018 with disturbance on the first part of the rainy season in the Sahel, review the log range forecast map, prepare and submit inputs to the ppt for ccl TECO to be held next week in Genevva
B171: prepare the presentation on the 2017 state of africa s climate to be presented on april 11 2018 at NCFS meeting at undp Niger
B172: Bonjour chers collègues, chers partenaires,J’espère que mon message vous retrouve en parfaite santé ! Vous êtes cordialement invités à prendre part à la réunion de la Task force Services Climatiques qui aura lieu le Mercredi 11 Avril 2018 à 10h00 à la Maison des Nations Unies. L’ordre du jour de la réunion comporte les points suivants : 1. Introduction, amendements/validation agenda (5mn) 2. Partage d’informations sur le processus du CNSC (15mn) - par GFCS & DMN - Etat de mise en œuvre du CNSC - Défis & perspectives 3. Etat du Climat en Afrique en 2017 (15mn) - par ACMAD 4. Présentation sur une initiative ‘‘d’Appui au développement d’un Système d’Informations et de gestion des risques de catastrophes au Niger’’, en appui au CREWS (15mn) – par le PNUD 5. Présentation du PAM sur son projet de soutien aux services climatiques au Niger (15mn) 6. Divers (10mn) Merci SVP de bien vouloir confirmer votre disponibilité à y prendre part. Cordiales salutations, Daouda
A173: April 06 2018 | B173: coordination meeting with the need for hubert and bob to work on catalogues and procedures usng scripts for each product of the different services
B174: read WMO doc on QS for climate services and ISO 9001:2015 7 principles
A175: 2018-04-07 | B175: weekly reports timesheet for me submitted fro week 56 to week 65 ending on april 08 2018
A176: Aprl 08 and 09 | B176: travel to geneva fo CCl aprl 10 to 14 2017
A177: Aprl 10 2018 | B177: day 1 of ccl , welcome by elena on behalf of SG,, she thanked Tom for the 8 years, MG and rapporteurs and ccl expets fo the work
B178: ccl helped members and interational community on climate, demands for climate services is growng including private sectors, WMO is recognized as a science organization, validate, verify , authoritative poducts by ccl, complement the state of climate with impacts from sister agencies, ccl meets a year before congress, new wmo strategy is in line with SDGs, need to consilidate efforts to accelarate products and services development, 3 priiorities ( resilience to hazards, adapattion, 5 long term goals services, research, observation, synergies, seamless iintegrated appoach, despite efforrts on data less information is taken from it, (science, services, research and operation)
B179: World Economic forum higglight disasters and weather extremes, short break
B180: WMO in collaboration with the CBS/CCl Inter-Programme Expert Team on Operational Prediction from Sub-seasonal to Longer-time Scales (IPET-OPSLS) has initiated a series of Workshops on Operational Climate Prediction to facilitate the dialogue between various operational climate prediction centres (including, inter alia, GPC-LRFs, RCCs) and to strengthen interaction and enhance partnership between operational and research communities.
B181: Second WMO Workshop on Operational Climate Prediction from 30 May to 1 June 2017 in Barcelona, Spain, hosted by the Barcelona Supercomputing Centre (BSC).
B182: election of president of CCl Ms Manola Brunet
A183: April !! 2018 | B183: openng of TECO by chair Roger pulwarthy, gave floor ccl president to peterson see accoplishent and giuide the future, agenda presented, objectives, contributions of
B184: Max Dilley presented status report on climate services implementation for olic
B185: TECO objectives to highligth ccl outputs like tools, products, practices , stiulate discussion on the state of the art
B186: architecture of CSIS, scope past , present and future to broadening provision of policy relevant climate information
B187: 95 ECV availaible but not well discoverable, CST for access to tools, methods, software, data and products, Twinning using project resources, pcr, Adaptation Fund, CREWS, bilateral loans, ENSO infor UN and GSCU update highly demanded, 70 percent of countries need data rescue, standard products no satisfaction
B188: Engage with uses, find and provide what they need, document and communicate the results
B189: VVP of ccl barbara, role of ccl in addressing members needs: opportunities and challenges
B190: usd 9 billion projects in the world, project phases include traning, comunication phase 2 on tailoring climate services and dialogue with users
B191: challenges are resources to improve services and increase dialogue keep with Ras
B192: JP ceron on climate predictions , projectons and delvery mechanism , opace 3 achieveents, next steps , discussion
B193: RCCs, RCOFs, operational predictions from sub season to longer tiescales, GSCU, Tailoring, CSIS, climate projections
B194: revision of GDPFS manual, review RCC establishment and operation of WMO RCCs, , Revision of ToRs of TT TCI, starting the guidance documentation, workshop of ccl/cbs ET OPLS liked with CSIS, workshop on operational prediction, GSCU, CST requireents, guidance on LRF practices, GSCU operational like scchedule, drafted user guide, coments being analyzed, comitment for operational phase, IPET OPSLS involved, update of RCOFs position papers, organized global RCOF review, way forward to engage users for co design, co production seeking sustainability, GDPFS seamlessness, ccl needs on specilized RCCs and GFCS, introduction to CST, CC information, Near Ter prediction decadal outlook established Lead Centre and Global Centres , Global Annual to Decadal outlook,
B195: Pers pectives, Better services for society with CSIS operational, goal 2 Enhanced Earthe system GDPFS, goal 3 advamced research , monitor RCCs , guide of RCOFs process
B196: S2S forecasting by arun kumar, objective methods, weakness of rccof lack of forecasts impact assessment, lack of objectivity purely, products not tailored , how to use terciles, terciles are book covers, strengths of rcofs include capacity developement and collaboration, coordination of RCOFs, NMHSs RCC GPCs, networking, communication and awareness of users need objective forecasting and towards tailored information, RCOFs for services,
B197: sector RCOFs or user driven forums or platforms, co design, co develop and co produce
A198: April 16 2018 | B198: meet with Lambert to finalize elements of secomd budget modification , take $2000 from ticket of NFCS consultations to fund PRESASS 2018 in Abidjan, per diem rate at euro 150,
B200: meet with Bachir to make the vigilance for meningitis maps for Africa and Niger for WMO publication
B201: start preparation of template for technical note for countries attending pRESASS 2018
B202: review state of climate 2017 to facilitate publication by WMO, title : state of climate in Africa
B203: invitation by the Ministry of agric and livestock pastoralism for a meeting on April 17 to 18 2018 for a workshop to review of niger agronomic research , training and innovation strategy
B204: submit a 2 vigilance products for the WMO paper reviewed last with in Geneva with WMO communication section
A205: April 18 2018 | B205: attend the meeting to review the strategy for agriculture resaerch of the ministry of agriculture in Niger, climate service for agriculture information system, support to operations of the NFCS WG on climate and agriculture programme proposed to strengten NMHS of Niger and Ministry of agriculture collaboration for application of climate information for agriculture research and development
A206: April 19 2018 | B206: prepra ccl 17 report and draft of the drivers section in the state of africa s climate report following wmo comments
... 1081 more rows

Sheet dailydiary
A1: Date mm/dd/yy | B1: tasks | C1: comments/things to be done or completed
A2: 01/29/15 | B2: revise pages of implementation, revise contract and prepare work programme for Njau, review procurement for communication amterial for AMCOMET and MESA KICK off , prepare presentation for RA1, organize a meeting with university of niamey (Dept of Geography partners on GIS training in MESA) | C2: MoU with MESA partners to revise, concept note and programme of Kick -off, presentation at RA I, coordinate communication material preparation for AMCOMET and kic-off, meeting tomorrow with geography teacher university of Niamey
A3: 01/30/15 | B3: e-conferece with environment canada preparation from 16:00 PM, review vacancy notice for admin&finance, provide template for financial statement and reporting including explanations to interim saf | C3: prepare coordination meeting for Monday February 02, 2015, take a ppt from inoussa for the e-conference, inoussa will prepare tresholds for vigilance, a forecast maps and related dataset to be sent first week of february 2015 to INSPQ participants are: Pierre gosselin, fanny huot
A4: 12/15-31/2014 | B4: organize roundtable and partner meeting mesa, prepare inception draft report and report of roundtable meeting | C4: report of partner meeting prepared, draft inception prepared
A5: 01/19-12/15 | B5: preparation and participation to TEM 4, prepare AMCOMET presentation, prepare communication material for AMCOMET and kick Off | C5: TEM4 report to follow particulary recommendations, dicussions with Massimo on STE from ADDIS budget, revision of ACMAD MESA budget to better attract, maintain and motivate personnel
A6: 01/31/2015 | B6: revise implementation plan starting pages 70 , update the vacancy notice for admin&finance officer and follow its publication with Nafissa, prepareof draft agenda for the coordination meetingof Febraury 02, 2015
A8: 2015-02-01
A9: 2015-02-02 | B9: presentation of RCC products, how to update tthe website, Preparation of inputs to concept note and programme of MESA forum | C9: internet acces problem
B10: coordination meeting completed
A11: O2/O3/15 | B11: hotel logistic for the kick in addis details, presentation for Praia
A12: 2015-04-02 | B12: repondre au message proposant la deuxième videconf environnement canada siur les prévisions saisonnières et subsaisonnières le 26 février, meeting with agrhymet on PRESAGG02, recommendations of past presagg reviewed and local budget from benin discuss, a request message for profoma sent to benin on feb 04, 2015
B13: suivre presanord 08 avec boucherf
A14: 2015-05-02 | B14: recruitement of assistant coordinator for ISACIP (analysis of the assessment report), briefing for FMA, MAM 2015 forecasts from 10 to 12 AM , production of Long range forecasts and dekadal bulletin
A15: 2015-05-02 | B15: preparation of RA1 scientific lecture on role of ACMAD in pots 2015 sustainable development agenda, préparation de la note d'itérim dce du 06 au 17 février 2015
A16: 2015-06-02 | B16: revise inception report for MESA and the RA 1 presentation
A17: 2015-07-02 | B17: attending the RA 1 - providing alecture on ACMAD role for sustainable development post 2015
A18: 2015-08-02 | B18: finish review of undp reprot and submit to seon
A19: 02/06 to 02/17/2015 | B19: participation to RA 1 and AMCOMET session in Parai Cape Verde, a presentation made on ACMAD priorities for contribution to post 2015 SDS,
A20: 02/19/2015 | B20: prepare e-conf with Environnment Canada, MESA Web designer for one month( use SADC webportal sofware for web design, web management…), list from hailu on communication strategy:operational plan)
A21: 02/19/2015 | B21: delivery plan for CED ACMAD with budget/sources
A22: 2015-02-25 | B22: exchange with Jolly/olushola on ACMAD-AUC colaboration, a calendar of events prepared and under discussion, start preparation of 2015 work plan and budget for MESA | C22: ACMAD-MESA to follow up
A23: 2015-02-23 | B23: addendum to kandadji agreement review and kandadji accept to sign, letter for RCOF support prepared, sgned and submitted to WMO, Vaxancies for kandadji recruitment prepared | C23: ACMAD SAF should follow up
A24: 2015-02-24 | B24: supervise preparation of 2014 state of climate report, 10 day bulletin with outlook, montly bulletin for JAN and lond range bulletin for MAM and AMJ 2014
A25: 2015-02-26 | B25: Technical specifications for kandadji equipment collected reviewed, consolidated, reviewed drought products tables, provide a paper on validation of soil moisture to experts - submited a tentative agenda to AU(Jolly) with expected role of AUC
A26: 2015-02-27 | B26: Announcement for PRESASS-02 drafted and submitted to Ousmane-senegal
B27: M. Lotfi replaced boucherf we exchange email he needs list of participants, we need budget signed by his PR | C27: follow up by Gedeon
A28: 2015-02-27 | B28: coordination meeting on PRESAGG and PRESANORD, status of e-station data being now received but NDVI not processed, i asked to consult Songoti, review drought products tables, remind Nafissa for recuitmen of mESA admin/finance officer
A29: 2015-02-28 | B29: preparation of MESA work plan and budget 2015/ prepare Vigirisk final report
A30: 2015-03-03 | B30: revise drougth, seasonal forecast product table
B31: work plan and budget preparation and discussions with the team | C31: grant proposal hard copy signed to be available, scanned copy to prepare the peer review
A32: 2015-03-05 | B32: prepare AUC 10 march meeting for result area 4
A33: 9-11/03/2015 | B33: mission to Addis MESA Resultare4- report of the event and mission report
A34: 2015-03-12 | B34: preparation of ADDIS mission and event reports, supervise Climate change expert on product table, supervise ISACIp OJT and seconded expert on weekly outlooks and verification
A35: 16-19 /03/2015 | B35: meet robert brown, meet with staff for timesheets,weekly, monthly and quaterly reports
B36: Continue work on service development plan
B37: Prepare presanord-08
B38: follow vigirisk report
B39: follow kandadji
B40: recruit Admin&finance officer
A41: 16-20/03/2015 | B41: response to Mali for departure of moussa; preparer les demandes de contributions et distribuer au presanord en particulier pour l'algérie
B42: Préparer l'échange teleconference avec environnement canada pour le 1er avril 2015 | C42: important, -procedure de prévision saisonnière, exemple de produits, procédure de prévisions hebdomadaires et example de produits,
A44: 2015-03-17
B45: preparation of steering committe ToRs, rules of procedure, report and expenses statement for 2014, work plan and budget for 2015, communication material for the steering committe meeting on seasonaml forecast and related measures
A46: 2015-03-18 | B46: visite SMHI projet WACCA , exchange with Kandadji, agree on ToRs for 3 recruitments , | C46: a presentation of SMHI and the WACCA project was made, need to send request for non objection for the recruitments | D46: WACCA has education, communication and climate service production components
A47: 2015-03-19 | B47: prepare FACE and UNDP datarescue reports and request for installments, prepare inputs to ISACIP work plan and budget, preparation of CED reports for 2014 and 2015 work plan | C47: prepare FACE and UNDP datarescue reports and request for installments | F47: =84000/655.957 -> 128.0571745
A48: 20-25/03/2015 | B48: implement pRESANORD-08 in Algiers | C48: Bulletin and report, budget, training and ^roduction of the forecasts
A49: 26-30/03/2015 | B49: finalize Vigirisk Report, prepare UNDP report and request for second disbursement, prepare FACE report
A50: 30/03/- 02/04 2015 | B50: Supervise and Mentor , MESA experts; ISACIP on the job trainees and Experts
A51: 2015-03-30 | B51: prepare long range forecast for AMJ and MJJ 2014
B52: Visit AGRHYMET for MoU signature
A53: 2015-03-30 | B53: publish paper data recues | C53: file:///C:/Users/HP/Downloads/bams-d-13-00249_E1.pdf
A54: 2015-03-31 | B54: finalize UNDP data rescue and FACE reports with Bachir and Inoussa
A55: 2015-04-01 | B55: prepare and present climate forecasting at ACMAD at teleconference, finalize the AMJ and MJJ 2015 forecasts, evaluation of short listed application for Finace/admin officer ACMAD/MESA | C55: ACMAD-Env Canada
A56: 2015-04-02 | B56: finalize timesheets and weekly report of France | C56: France promised finalizing monthly reports by Tuesday 07, April 2015
A57: 2015-04-06 | B57: message (reminders) to mESA staff to prepare timesheets-weekly_monthly and quarterly reportQ1 | C57: Request also to bachir former SAF
A58: 2015-04-04 | B58: draft agenda presass to envi canada, ANACIM, SAF for invitation letter | C58: important to follow by Herman
A59: 2015-04-07 | B59: revise MESA ToRs
A60: 2015-04-08 | B60: make sure that the justification and end of vigirisk project report is submitted | C60: See serges
A61: 2015-04-08 | B61: request to SAF the Bank statement of february 2015 on the MESA account | C61: See Herman, Zeinabou
A62: 2015-04-08 | B62: Go to Agrhymet with the MoU MESA and finalize CSC ToRs with manfred and DG | C62: Manfred and Ben
A63: 2015-04-08 | B63: Follow up request for disbusment with UNDP | C63: Nafissa
A64: 2015-04-08 | B64: Follow up with Kandadji for recruitments
A65: 08-10/04/2015 | B65: support preparation of the minusterial conference for ACCAS-CEMAS RCC establishment | C65: ECCAS-Dominique, NMS Cameroon-Phillipe
A66: 2015-04-08 | B66: my weekly reports and timesheets | C66: manager MESA
B67: review of drought service development plan, vacination againts miningitis, preparation of job ofer for RAF, prepare budget of Steerin committee
B68: monitor and review weekly reports and timesheets for system and data base expert | C68: installation and testing of e-station training acquired by joyce in January 2015,
A69: O4/08/2015 | B69: preparation of budeget and programme for the MESA steering committee meeting, notification letter prepared for the recruited SAF , response to FACE/IRIACC on the yearly report ending on March 31,2015
A71: 2015-09-04 | B71: draft assesment report for DG on TA, monitor and review activities on themathic expertss, system and data base administrator, draft programme and anouncement for pRESASS-02 expected May 04-08, 2015.
A72: 2015-10-04 | B72: coordination meeting of CED , completed the reports, draft assessmenet of TAT for mesa PSC, Preparation logistics of the preparatory meeting of PSC in Nairobi on Mar 22, 2015, Preparation of the Mesa PSC expected in Mauritius on April 27-29, 2015, briefing on 10 day climate and outlook for the next two weeks, meeting with Gedeon on drought service and seasonal forecasts development plan, catalogue of products, preparation of communication material ( facts sheets, banners , video, 6 dics for the steering committee meeting next week on April 15, 2015, service development for drought and seasonal forecasts preparation | C72: see Koite
A73: 2015-11-04 | B73: follow up non objection for kandadji recruitments, follow up contact with new SAF, supervise Thematic experts reparing reportts and deliverables on service development plans, provide inputs to ISACIP 2015 work plan and budget , provide contact details for invitation including for ARC for participation to bulletin framework meeting in late may 2015 , facts sheets preparation for steering committee
A74: 04/13_18/2015 | B74: organize and report on steering commity on 15 April 2015 and reporting to the ACMAD Governing board, agenda of CSC, rules of procedure of CSC, 2014 report, 2014 income and expenditure report, wokplan and budget for 2015, Decisions&recommendations , - prepare the inputs to the concept note of the MESA forum - participation to the 2nd preparatory meeting of the mESA forum organizing committee ( mission 21_24 april 2015, for the meeting on 22 April 2015 in Nairobi | C74: note that change were made in ACMAD board dates late making optimal programming of dates difficult
A75: 04/20-24/2015 | B75: travel to nairobi and back on 21 April and 23 to 24 april 2015
A76: 04/20/2015 | B76: new edit of Kandadji project grant agreement, meeting of the MESA monitoring and evaluation consultant with Manfred, discuss quaterly reporting, inception reporting and preparation of presentation to PSC4, the consultant prepare inputs to the presentation based on inception report, Manfred prepare quarterly report 'Jan-March 2015), i review and consolidate for PSC4
A77: 04/20/2015 | B77: Verbal reminder to Mme Zeinabou on the justification of 2014 expenses in Vigirisk, M; Heman on the UNDP project 2014 and 2015 Q1 expenditure report, the rquest for 2nd disbursement was prepare in early April by CED, Admin&finance should hurry up, - work with Herman and Zeinabou on the period 2 ( March 2013, Sept 2014) to expenditure report for impact 2C, a credit notice may be missing abou t 8 million CFA is remaing in the project account on 30 set 2015, | C77: M. Bachir lost his password, and couldn't certify online on EU server. The expenditure report for period 2 " urgent matter to solve", SAF should organize and identify items on which to spend remaing funds | D77: Very important, the last general assembly for impact 2C is scheduled from 8 to 12 June 2015
A78: 04/21/2015 | B78: on travel to Nairobi for MESA forum organizing committee meeting, inputs on the draft concept for the forum on requirements of policy makers, specific objectives, potential invited speakers including ECMWF, | C78: Hotel Crowne Plaza
A79: 04/22/2015 | B79: participation to the MESA forum organizing committee meeting, edit the concept on site, contribute to discussions on number of participant per RIC/CIC, add sections on expected results/outcomes, date and venue, participants, in the concept
A80: 04/23-25/2015 | B80: preparation of PSC 4 presentation based on draft provided by Manfred&monitoring expert from ADDIS, finalize documents adopted by CSC and signature by Chairperson Ms. Olushola. Her remaining per diem should be given to her in Mauritius
A81: 04/10-25/2015 | B81: announcement for PRESASS-02, nomination letter sent for presaSS-02, draft budget preparation and discussions with LoC in Dakar, request for support to WMO and partners, preparation of the ppresass-02 programme, logistics arrangements for participants, production of longrange forecasts and products for presass02
A82: 04/24_26/15 | B82: revuew agenda for PRESASS-02, announcement, programme, exhange with Ousmane, exchange with Dominique for presac-09, preparation of concept note, programme of the continental framework meeting
A83: 04/27/15 | B83: Fist day of PSC-4 in Port Louis | C83: Hotel labourdonnais
A84: 04/27/15 | B84: follow up designation of ACMAD participants, review of proforma invoice with Hotel | C84: Master of ceremony was Gina bone 2 objectives : analyse progress - guide the way forward - advise formulation of GMES in Africa - Access to satelitte data to support copernicus sentinel satellites
A85: 04/27/15 | B85: review program for PRESASS-02, review the UNPD report (technical and financial) and request for second disbursment | C85: ask SAF to provide expenditure statement up to march and a request for disbursement indicating spending of 80%
B86: prepare by reading documents for GMES meeting on Wednesday 29 april 2015
A87: 04/28/15 | B87: present ACMAD-MESA and listen to other RIC
A88: 04/30/15 | B88: end of PSC4 and return to Niamey
A89: 05/04-18/2015 | B89: Preparation for the last IMPACT 2C GA expected from June 08 to 10, 2015, discuss with Mokoena on the definition and specifications section of the CCA service development plan( he should add terms and definitions using wMO guidelines)
A90: 05/02-09/2015 | B90: attend the presass-02 with lectures on climate variability, seasonal forecasting procedure for RCCs, practical sessions on preparation of national outlooks, preparation/presentation of RCOF product, update and presentation of DG speech,
A91: 05/13/15 | B91: Presentation by Mohammed Koite of the procedure for weekly outlook preparation | C91: _ basic products, _Influence of oscillations, _ analysiss of fields
A92: 05/14/2015
A93: 05/10-18/15 | B93: prepare UNDP 2015 Q1 report, expendirure statement ancluding cummulative expenditure statement since Jul 2014 to march 2015, prepare the worl plan and budget for Q2 2015, submitted on May 19, 2015
A94: 05/19_20/2015 | B94: meeting with Mossi on justification of vigirisk 2014 expenses, | C94: Mossi said: justification of per diem for AMA mission is to Nafissa, Tckets probably not paid, need a statement of account, taxes for the contract with aufditor to be derived before paying him
A95: 05/13-19/215 | B95: final review and submission of the D&SF service development plan to Robert and Massimo
A96: 05/10-31/15 | B96: Preparation of the ACMAD MESA kick off( with 1 or 2 days of partner meeting on MoUs and implementation, Focal pooints, Procurements and recruitment procedure, continental training of FPs(TORs and skills required to be FP)
A97: 05/20/15 | B97: Meeting with Mokoena on weekly reports and timesheets ( he is not ready , he should come back as soon as he is prepared), meeting with Joyce ( good template for reporting and timesheets not use, agree to meet again on Friday may 22, 2015 to revise these documents); Will meet with Serges and Mbaiguedem on weekly reports and timesheets ( before May 25, 2015) | C97: Meet with Serges and Mbaiguedem before May 25, 2015)
A98: 05/22/2015 | B98: meeting to respond to WMO letter on Norwegian cooperation on GFCS implementation with RCC : the meeting ended with a proposal to DG on the dates for meeting with WMO /Norvegian mission
A99: 05/22/2015 | B99: supervise production of projection on onset and cessation of seasonal precipitation by Diasso and Mokoena
A100: 05/18-22/2015 | B100: Review weekly reports and timesheets with Joyce, Mokoena, derges, Gedeon
A101: 05/22-26/2015 | B101: Read the financial agreement on mesa between AUC and EC | C101: in …/MESA/andre directory
A102: 05/24/15 | B102: répondre à la proforma de EUMETSAT sur la clé EKU | C102: Urgent lundi voir le message eumetsat envoyé le 22 Mai 2015 @Mr Kamga, we are still awaiting your reply on the pro forma invoice. Should we start the invoicing now for this eku and software ? Please state once again to whom it should go to. Please also note that you should reply with 300029048 Additional Decryption Hardware/Software, this is the job number that was created for the purchase of this key. 300028924, is the technical job between EUM, JRC and ACMAD.
A103: 05/15-30/2015 | B103: techncal guidance to Diasso and Mokoena and production of climate change maps for onset and cessation periods of seasonal rainfall accross africa -Typical product og MESA climate change - A service on expevted scenario will use an Africa Map with aeras expecting delay/ealy onset or withdrawal of seasonal precipitation with text like Enso impacts ang WMO statement on global climate extreme events maps | C103: Important
A104: 05/15-30/2015 | B104: Collaboration with En canada on communication of risk information to public , palnners, polocimakers | C104: useful for the drought service and seasonal forecast service, ssaryone bulletin and statement per month and other within a the month if nece
A105: 05/25/2015 | B105: revise timesheets and weekly reports with Mme Joyce, prepare stetement on projected onset and withdrawal of precipitation with Diasso and Mokoena
A106: 05/25/2015 | B106: go trough e-station manual with joyce Banda | C106: urgent
A107: 05/25/2015 | B107: Follow up the training in darmstad , catalogue of products to be provided on the e-stations | C107: Gedeon and Mokoena need to revise and send the catalogue using the JRC template; urgent the filled template wil be used to make CIC products visible - on and mokoenaJoyce will help by revising the templates made by Gedeon and Mokoena
A108: 05/25/2015 | B108: Installation disk and manual for the e-station sent to Joyce Two weeks ago, on Unbuntu 14.0 | C108: Joyce to provide a report on darmstad training with all materials in Presao Sg computer in a directory callled /presaoSG/damrstad training material , Joyce to follow up during operations that the products are send for EUMETCAST.
A109: 05/25/2015 | B109: Joyce need support from mariama on emma and e-srtation ( joyce's weekly reports review | C109: Joyce write a status report with hard , soft and data/product sections ( 3 sections), use information given by JRC after accessing yhe computers.
C110: see mariama on loops in ACMAD creating interference betwen networks
C111: See Mariama on african synoptic precipitation from NCDC
B112: Joyce to visualize installation EKU disk on PUMA , push Serge to give content to Joyce for the stakeholder database | C112: router for MESA project to be made available operate the router from the MESA project office, separeted internet gateway for MESA, Payment of EKU Urgent , procument of additional computers
C113: Need a server dedicated to hosting ACMAD/MESA Applications , also develop ACMAD -MESA web portal with just a miror on ACMAD website
A114: 05/25-30/2015 | C114: diplomas and certificate of MESA Staff reminder to stafff
A115: 05/25-30/2015 | B115: joyce to put all material on EUMETcast and linutx traing on presaosg/trainiglinuxeumetcas | C115: Important
B118: Joyce start from W32 to add the training sessions titles and at the end of weekly report add the path to the training material directory
B119: need installation manual to ingest historical data in the e-station , see amesd manual and e-station installation manual sent by marco | C119: urgent
B120: Seee the MESA moniroting report with manfred | C120: Very urgetnt
A121: 05/26/15 | B121: revise and resubmit undp report and request for disbursement, review weekly reports and timessheets for gedeon, serges, Joyce | C121: SAF to prepare the justifications of expenses declared (very urgent)
A122: 05/27/2015 | B122: Exchange with Manfred | C122: I send a request for skype to Jolly and Tseday on kick-off, next week manfred make a presentation on GIS, photoshop 7.0 , use of powerpoint for mapping next week
A123: 05/27/2015 | B123: Echange avec dominique sur la date de la prochaine réunion du AWGDRR, drfat a letter to respond to wascal on data rescue collaboration on May 27, 2015 | C123: date venant de dominique 21 au 23 juillet 2015
A124: 05/27/2015 | B124: prepare a consolidated product on onset and withdrawal of rainfall season
A125: 05/28/2015 | B125: justifications for vigirisk and undp data rescue, draft review of communication strategy
A126: 05/28/2015 | B126: tomorrow send temperature forecasts to DG
A127: 05/29/2015 | B127: draft statement for policy makers on the projected change on Start and cessation of seasonal rains accross Africa
A128: 05/29/2015 | B128: Coordination meenting at 17:30 with all staff except gilles | C128: next week main activities : gedeon ( complete template for products and send to marco, work with Joyce to ingest ERA soil moisture in the e-station) serges ( mise a jour de la base de données des acteurs, organisation du mat de com pour le kick off, finalize la strategir de com, finalization des contenus pour le site web et tranfert à Joyce, assist the MESA comm expert from ADDIS), Joyce will (develop web site, config e-station to ingest JRC data, train serge on update the stakeholder database, fill e-station with ecmwf era soil moisture, euk to be installed, contact songiti for help) , Mokoena ( review service development plan from Njau, finalize the service development plan next week, discuss with Joyce on data sources, use Drought and seasonal forecast plan to take similar paragraphh), Njau ( service development plan for climate change assessment distributed to thematic expert, embark on user manual with its template -chapter one done, chapter two and 3 next week expevted to finalize by en dof june 2015, ) ,
A129: 06/01-05/2015 | B129: fill the sustainability matrix, present the indicators for project monitoring to all at coordination meeting, Provide copies of degrees and certificates in cvs | C129: very important
A130: 2015-01-06 | B130: discuss with Mokoena on his contrat, Njau on is short term contract
B131: Nafissa submit the revised kanadadji agreement for signature and transmit to kandadji office
A132: 2015-03-06 | B132: pay the invoice for usb internet Orange | C132: Djibo
B133: signature needed by nafissa on the laptops tender dossier by Nafissa
B134: Gilles follow request of services for equipments
B135: Visa card to
B136: fill the template of products needed by ACMAD for the e-station | C136: with Gedeon
B137: completed the UNDp justification and send to Addis
B138: prepare ToRs for short term recruitement of CCA MESA
B139: Remind staff on their diplomas and certificates | C139: urgent
B140: Prepare Tors for remote work of Mokoena
B141: Prepare people and introduce MESA sustainability Matrix next Friday a weekly meeting | C141: Important
B142: finalize justifications for vigirisk 2015 expenses | C142: With Zeinabou
B143: Preparation of presentation for Agriculture Intelligente face au climat | C143: with Gedeon
B144: prepare Jan June 2015 report
B145: Exchange with UNDP for the second disbursment
B146: audit of A take over before take off
B147: Payment of remaining per diem for daouda LPASF and transfer of funds for MESA partner UNIV Dakar
B148: MoUs with Univ Nairobi
A149: 2015-05-06 | B149: Preparation of documentary with Eric Hanieri for MESA
A150: 2015-05-06 | B150: Coordination meeting | C150: Serges ( things not done are stakeholder database, and communiction material for kick off, next week joyce sit with serges for about and hour on Monday, ) Pr Thursday serges work with manfred on collecting kick off Material, Tuesday Serges finalize the material for website with Joyce, next week Serges translate communication strategy in french )
C151: Joyce( Website development, installation of the estation and second network card, next week : website development, training on the MESA stakeholder with Serges
C152: Andre ( present the sustainability matrix,
C153: Gedeon ( Siol moisture data ingestion not done , during the week service development progresss with comparision of precipitation and siol moisture anomaly from IRI data library, percent of average. The template for climate products to be made available through the e-station prepared and sent to Marco, put Robet and Massimo in copy of the template, Geden and Joyce work next week on Tuesday on soil moisture ingestion)
C154: Mokoena ( review principles, mechanism, user support, user guides, consolidation of weekly reports to produce monthly report,
C155: Manfred ( will discuss the user guide with Robert next Wednesday,
C156: Gilles ( for next week sort out payment of remaing per diems for participants to Steering committee and partner meeting, personnel recruitment procedure for MESA, Make copies of MoUs with Safia
B157: Find out collaboration with impact 2C -CSC , need to request loging and pasword for finnacial report certification | C157: Very urgent
B158: Monitor M. Fochive ISACIP visiting scientist in Dakar
A159: 2015-08-06 | B159: arrive in Hamburg, instruct nafissa on the undp vendor template to be filled for second disbursment, contact gilles for budget addendum, procurement of vehiclesin MESA , review doc for impact 2c meeting, prepare first draft presentation for Agriculture intelligence face au climat workshop planned for June 15-18 in Bamako
A160: 2015-08-06 | B160: discuss disbursement for University of Dakar who submuitted a request
A161: 06/08-12/2015 | B161: attend Impact 2C GA
A162: 06/13/2015 | B162: mentor eamac student - Pascal moudi | C162: meet for revue of dissertation report on impact of satellite data in forecasts made with LAM for west africa
A163: 06/15-16/2015 | B163: coordination meeting on MESA with Gilles on budget addendum, his role as ACMAD/SAF, Prepartory meeting for kick-OFF, preparartion of a policy brief based on CCA product on onset and cessation of precipitation seasons in Africa | C163: review programme, participants, invitation letters, budget
B164: power brownouts and substantial lack of internet access hamper progress during April-May-June 2015 | C164: important
B165: draft programme kick-off review and submit to Jolly and tseday
A166: 06/17/2015 | B166: Expenditure justification for Vigirisk project in 2014, collect, review documents
A167: 06/18/2015 | B167: prepare material for MESA website, publish vacancies for Climate change short term expert
A168: 06/15-19/2015 | B168: prepare first semester report of CED, April-June mESA progress report, coordination meeting ( complete sustainability matrix, weekly reports (status of procurements, logistics for coming events like ICTP workshop, kick-off, ME workshops, visitors)…., website content development, billet diasso, serges started training on stakeholder database update, pictures for website given to Joyce, tentative translation of communication strategy in English, Serges/manfred/gedeon./abani/Gilles and others met on legislator workshop expected in Ghana during the second week of July | C168: Gedeon test integrated drought service, next week, Joyce will focus on website d velopment and e-station installation next week, next week Serges will make a request for Service to translate com strategy , need urgent review by pM before translation, key entry data of stakeholders, collect communication material for kick off, requeste for service, draft front page of the drought service and seasonal forecasts, Gedeon provides the manual for SADC drought Service to Njau , Mokoena will continue develop the product generation procedure manual particularly projection products , he develop the section in the manual on climate change detection product, Njau is develop this week | D168: Next week Njau continue with training material development | E168: Njau next week should look at MWMO guide , manual, guidelines on drought, he should also visit ucar COMET, Gilles brice Adoukonou Bagan presented on review of two banks accounts for MESA from October 2014 to April 2015, review expenditure table for MESA steering committee ( do you see payments remaining? ), Brice also look at PRAG 2014 and prepared the tender dossier for purchase of 2 vehicles, tender dossier finalized on June 11, 2015 , Vacancies for STE formalized, June 12, start documentation and archiving jexpenditure justifications, last week of 15 to 19 June 2015 brice worked on financial report since October 2014 until May 2015, some expenditure documents were classified some need to be regularized , inventory of missing justifications and doc to be completed, Vacancies were published, attended meeting on kick -off , collected information health insurance and other elements of groos salari at UNDP Niamey. Collect banks account slips , upade journal and reconciliation of May 2015, documentation and archive justification documents, visits to collect quotation for uPS office cubicle, printer, Next he will draft budget addendum and template of MESA Asset Register(EU format), follow up suppliers on small items . to buy. June Salary for June should be followed, reservation for Diasso, signature on account MESA, Gilles will take voucher and MESA personel management responsability, Gilles negociate special conditions on the accounts, imprest contract with DHL
B169: meeting for supervision of FACE project expert ion, synoptic patterns , validation of GFS heat wave ( treshold per st
B170: Prepare MESA April-June monitoring report, propose a new draft programme to hold the kick-off with MESA forum on Aug 31-Sept 04, 2015
B171: Littérature review on UCAR Comet website and provision of reference to Tas on training materials for drought and seasonal forecasts
A172: 06/22-26/2015 | B172: Preparation of April-June 2015 quarterly monitoring report will continue. Supervision, monitoring of ACMAD-MESA activities. Filling sustainability matrix will continue. Discussions with MESA headquarters on the draft kick-off event programme, participants and invitations. Finalization of communication strategy document
A173: 06/22/2015 | B173: Vigirisk justification docs not complete, salarie slips, order for transfert of salaries to staff to be completed, user manual for drought service SADC provided by Gedeon for use by Njau, SADC user manual send to Njau for use
B174: discuss at a meeting with Serges and Manfred on comm strategy objectivs and specific objective
B176: Review email received until June 22, 2015, impact 2c financial reporting preparation for new password, dissemination of vacancy for 2 CCA to emailing list in Dakar esp, ama-cameroon, cordex africa
B177: EUMETCAST 8-12 june 2015 training in pretoria, R was used to process SAF Climate data | C177: CM SAF Trois (3) instructeurs à savoir les Docteurs Jörg Trentmann, Mark Higgins et Steffen Kothe venus d’Allemagne, ont assuré la formation. | D177: Les produits de CM SAF peuvent êtreregroupés en 3groupesà savoir: | E177: CM SAF data (SIS)
A178: 06/22/15 | B178: review of dissertation report of M. Moudi Pascal , exchange with massimo on the draft agenda, an appointment to call him proposed for june 23 at 09 AM | D178: o les données de radiation solaire (rayonnement direct, rayonnement au somment de l’atmosphère, …); | E178: Location | F178: Abidjan (in the South) | G178: Korhogo (in the North)
A179: 06/23/2015 | B179: provide inputs, figures for Chapter 8 of AMMA forecaster handbook, visit of Hama , he was introduced to CED project particulary WACADARE, UNDP data rescue, Climsoft operations and training | D179: o les données de nuages et aérosols; | E179: Brightest year | F179: 1998 | G179: 1990
B180: e-letter received as member of ICT-CSIS of GFCS , message sent to join the google group | D180: o les données de vapeur d’eau (vapeur d’eau, humidité, température, …); | E180: Darkest year | F180: 1990 | G180: 2009
B181: ICT joined through gmail, data rescue, management and climate service presentation preparation for bachir ahmadou for yaounde undp meeting, introduction of hama to data rescue, management and services for WMO acmad collaboration | D181: D’autres données telles que la pluviométrie, l’évaporation et les flux de chaleur latent sont également disponibles à l’échelle globale. | E181: CM SAF data (CFC)
A182: 06/24/2015 | B182: review and suggestion on the table of content for drought training material, littérature review on drought on UCAR COMET, proposition of the use of WMO 100 on climatological practices for service development plan | E182: Cloudiest year | F182: 1990 | G182: 1989
A183: 06/24/2015 | B183: clarification des responsabilités de Gilles ( il prépare l'audit de Septembre 2015), decision sur la signature des marchés de faible montant voir , billet de Joyce non payé, Gilles prend la signature du compte MESA , il prépare et suit tous les dossiers administratifs | D183: - Les fonctions statistiques de base dans l’outil R ont été utilisées pour générer les produits climatiques avec les données de CM SAF. | E183: Clearest year | F183: 1998 | G183: 2002
A184: reunion de management avec le DG | B184: changer gedeon et mettre hubert pour l'atelier mekrou de validation des études sur l'inventare des projets éxécutés., | C184: DG ( faire le point des documents manquants et assurer, Gilles travaille sur MESA, il peut donner des avis pour le moment, il n'y a pas d'état des factures et impayées, Gilles pourvoir au poste de natanda et herman. Après affectation des dossier par le DG cela traîne. Zeinabou un seul doc de procédyures, retard dans les rapports financiers , une semaine après l'atelier pour fournir les états financiers, cahier de sécurité à remplir et quelques camera sde surveillance, livre d'organisation admin, gestion comptable et financière et ressources humaines), pour écrire un draft du consultant est corrigé par un comité interne, le consultant revise et soumet., deplacer le personnel des postes, DG a demandé de relire le manuel ISACIP et reviser, retraite à ICRISAT pour 2 jour pour toiletter, DG demande de faire le cahier de passage. DG- demande de redéfinir les postes, voir les décisions usr les intérims, roles et responsabilité, mode de traçabilité des documents ( règlement financier, manuel de procédures, notes d'applications, | E184: GPCC data (Precipitation)
B185: informer le dg de la date du kick-off a Nairobi, et des décisions pour faciliter la passation des marchés, dossier mekrou reunion de validation en Juillet 2015 | C185: etat des recettes et dépenses hebdommadaires | E185: Wettest year | F185: 2010 | G185: 2010
B186: Taux de consommation des crédits à améliorer | C186: racourcir les délais de consultation, faire une lettre à la banque pour le spécimen de signature, un décision sur le ôle de gilles, definir le profil à recruter au service administratif te financier | E186: Driest year | F186: 1983 | G186: 1983
B187: Plan de financement du management de la qualité voir Nafissa avec le | C187: proposer un amendement pour créer des sous-comités , prendre une note pour mettre en place les sous-comités qui disparaissent a la fin, par type de service une liste de fournisseurs ou prestataires, gilles propose un acte pour reviser la liste,
A188: 06/24/2015 | B188: Visiteurs du projet ProGIS/AO, after review and inputs to the communication strategy and implementation plan PM discussed with TA and Communication Ofiicer to agree on gthe way forward to develop the document using EU manual | C188: Léon était à Ouaga en fin Janvier pour représenter ACMAD, une initiative d'évaluation des projets nationaux sur la sécheresse, l'équipe fait actuellement un état des lieux des activités sécheresse dans la sous-région, échanges avec ACMAD sur les plateformes DRR et la necessité de discuter avec la CEDEAO
A189: 06/25/2015 | B189: review and complete a table with responses to Robert Brown 's comments on drought and seasonal forecast service development plan | C189: Urgent
B190: fill the sustainability matrix by Project manager
B191: verbal report by koite on PROGIS meeting held in Bamako, Andre and Koite prepared the presentation during the previous week before koite left, Andre andre and bachir repared presentation on UNDP ACA project-Data Rescue at ACMAD Jun | C191: meeting held on June 22-23 , 2015 in Bamako,
B192: skype meeting with impact 2C to discuss update draft policy brief with WP 12 expert ( ACMAD, University of Bonn-valentin, Jafet Anddersoon-institute of , Sandro Calmanti, Franck Van , next skype on Wednesday 08 July 2015 at 10H30 European time, sandro will send an email with conclusions of the June 25 2015 skype meeting | C192: andre commit to provide next week a timeseries plot on historical sahel rainfal variability and a text analysing it, dos
B193: Fill questionnaire for mid term review preparation ( to opertaional skeholders and policy makers
B194: Draft programme for the third MESA forum organizing committee meeting received | C194: The memeting is on July 29 and 30, 2015 in Nairobi
B195: Review and complete the draft response to Robert Brown's comments on D&SF SDP
A196: 06/25/2015 | B196: Weeekly coordination meeting | C196: Ms Joyce started. She recalled website development and mesa e-station monitoring as main activities for the past week. EUMETSAT requested tasks and sent, Réalisation: stratégie de comm en correction , la liste vigirisk avec 300 noms, les contact emails des départments, lundi le nombre de personne dans la base sera donnée, La page de base des bulletins a été amendé avec les factsheets, la page de garde de la newsletter sera présentée, la press realease de praia est sur pc 10, the draft frontgpages for bulletin and newsletter. Color codes for logos should be given. Matériel de communication à collecter, le stand à voir avec hailu, la banderole est disponible il faut un stand qui peut contenir la banderoles, les tee skirt ( 200), Clé usb (300), pins (700), parapluies ( 400), demande service pour support kakemonos, fair un kakemonos avec les policies brief du steering committee et les projections precipitations, faire un kakemonos sur la minigites ( dédéon , Bachir et Serges) incription a la cop 21, Serges suit avec Safia et faire les réservations d'hôtel, Gédon les activités prévues : contacter Fabio, travailler avec Fabio et les autres sur les produits intégrés de suivi de la sécheresse: Réalisations: template du bulletin sécheresse ( Drought Watch bulletin), percentile script done with support of IRI on IRI DL, response to robert on SDP for DSF done and to be submitted to robert next week, weekly report consolidated Gilles: realisations mise à jour du dossier d'achat des véhicules, contact avec cotonou ESET NOD peu arriver dans 72 heures, comments on contract of KMC audit firm from Nafissa, exchange with Mercure on querty laptop for Joyce, finalize purchase order for cubicle, printer, UPS, Diassi ticket with wahegur, meeting with DG on admini and finance of MESA Gilles has signature on MESA ACCOUNTs, applications for gIS collected and filtered with a short list for the committee early next week; Gilles met the account manager at BOA and attaended ACMAd management meeting; Activities next week: fill assesst registers, update ACMAD list of suppliers, the suppliers will then be filtered by thematic area or nature of service, Djibo sortira la liste actuelle , le DG signe l'ancienne liste et une lettre demandant au fournissuer de donner leur contacts pour figurer dans la liste des fournisseurs ACMAD instructions. Data seen on pc1 but pc2 is not ingesting and processing the data. Issues with TAT ( bad training on e-station, and postponment of framework meeting...). website development. List of partners and url as well as calendar. Manfred Presented content of the website uploaded with policy briefs, products, media video,, temperature anomaly for May 2015, state of 2013 climate in Africa. Mokoena work on procedure manual for product development. Procedure for data acquisition written, screen shots on how to get data from website. Internet connectivity has created some challenges. Next week, will finalize the product generation procedure manual. Njau Leonard following PM , njau visited the UCAR COMET website, discussions on drivers for west and southern Africa, ( focal points should come more from meteorological services they will be exposed to become trainer, Njau will finalized the training module next week. Serges prévu: demande de service pour traduire la stratégie de comm, mettre a jour la base données, matériel de visibilité
A197: 06/29/2015 | B197: prepare mid term review mission : fill the contact details template and send to evaluation team, discuss with dg on the concept of cop side event, collect documents for preparation of the concept, Briefing for LRF JAS and ASO 2015, training of OJT trainees
C198: Need to respond on PRESANORD-MEDCOF, CONTACT UNDP FOLKS
A199: 06/30/2015 | B199: prepare Mid term review mission, evaluation of applications for GIS STE, review Njau weekly reports and timesheets, remind joyce, mokoena about reports&timesheets for acmad support staff (Ali, Diasso, Inoussa,…), review CCA service development plan, revise figures in chap 8 of forecaster hanbook(draft of chapter 8 is in RCC2014/trainnig directory and should be on RCC website)
A200: 2015-01-07 | B200: disuccss with Hama , DG, mariama on wacadare and need for data to update wacadare, | C200: WMO to write to sub-regional office and conact countries to send data to ACMAD (HAMA will talk to WMO
B202: Prepare concept note for cop paris side event, make weekly briefing withe Koite, prepare RCC CBS documents for partners,
A203: 2015-02-07 | B203: work with evaluation mission | C203: participants: - Alahli, Manfred, Ben Lamptey, Serges, Joyce, Gilles, introduction by Ben Lamptey, introduction to the questionnaire and swot analysis, strengths, weaknesses, opportunities and threats
B204: review concept of cop 21 side event | C204: Contact UNDP for letter of invitation and date of visit to ACMAD, send email toexcellent
B205: Preparation for contribution to MESA headqueter's newsletter, recruitment meeting for 2 CCA experts
A206: 2015-06-07 | C206: Mme Joyce: website development and e-station installation were main activities expected for week 42 that is the first week of july, attend midterm review , check e-station and data was coming into PC1 not PC2,, PC1 pakage was reinstalled. Learning on youtube how to create video on Website. Serges provides a video and Me Joyce build a video. For this week waiting for JRC to react on the ftp problem and prepare a video based on material to be provided by Serges. Serges activités prévus ( suivi de l'inscription a la COP 21,strategie de comm, mise à jour de la bese des acteurs, draft page de garde bulletin et newsletter. Réalisation ( revue des activités avec participation aux rencontres tel que la COP, Reunion préparatoire du groupe des négociateurs, Réunion du WGDRR, participations aux rcofs pour échanger sur les prévisions , préparer et diffuser par vidéo, messages, tweet, les informations, inscriptions à la COP 21, préparation de la mid term revue avec préparation de la salle et les couleurs avec les kakemonos, photos sur facebook, création du compte youtube acmad mesa pour diffuser les vidéos, necessiter de disposer d'un logiciel de montage des vidéos, montage de 2 à 3 minutes vidéo youtube à environ 50 000f. ) activities of this week ( provide final draft of communication strategy, create tweeter account for COP 21 to have facebook, youtube and twiiter, serges should annexx the procedures for creation of account on his weekly report, finalize page de garde of newletter and bulletin
C207: Gilles planned activities for week 42 ( budget addendum but other priorities came out ( recruitement for GIS finilzation, ….) Addendum postponed this week, journal banque de juin 2015,
... 2098 more rows

Sheet 2015budget per Activity
A1: Activity number | B1: Activities | D1: Budget (In Euros)
A3: 1 | B3: Installation of data reception systems | D3: 28032
A5: 2 | B5: Development, operation and maintenance of web portal, rolling archive, backup system mirror and website | D5: 50247
B6: Stakeholder information data base
B7: Maintenance and operation of reception stations | F7: =1079869/2019806 -> 0.5346399605
A8: 3 | B8: Preparation of service development plans
D9: 26417
A11: 4 | D11: 32417
B12: Definition, specification, and development of Climate change assessment, drought and
B13: seasonal forecasts products/services
A15: 5 | B15: Validation and integration of products and services | D15: 33381
A17: 6 | B17: Preparation for service operation | D17: 16325
A19: 7 | B19: Cooperation on continental climate services | D19: 34765
A21: 8 | B21: Development of and contribution to continental environmental bulletins | D21: 13158
A23: 9 | B23: Development of visibility material and sensitization of policy makers | D23: 36673
A25: 10 | B25: Participation to conferences, fora and other events | D25: 50925
A27: 11 | B27: Organization of committees (steering), kick off and other policy meetings, for a and conferences, verification, audit missions | D27: 72940
A29: 12 | B29: Training material/package development | D29: 35809
A32: 13 | B32: Organization of one continental training event, on the job training, internship/secondment | D32: 61867
A34: 14 | B34: Implementation plan revision | D34: 13753
A36: 15 | B36: Weekly monthly , quarterly and annual reporting, supervision, monitoring/review/evaluation, | D36: 15306
A38: 16 | B38: Administration, recruitment, procurements, records keeping, logistics, accounting and financial management including verification/audit and reporting | D38: 255130
A40: 777144
A42: 738 287
A44: 38 857
A47: 509 773 047

Sheet Sheet2 (hidden)

Sheet events&meetingsQ12017
B1: Event/Mission Title | C1: Dates/location | D1: Objective | E1: actions required | F1: comments | G1: status | H1: Funding
A2: 1 | B2: 4th Meeting of GFCS_ACP Task team | C2: January 17-19, 2017 // Brussells-Belgium | D2: Comment on formulation study's inception report and share additional information on regional aspects of GFCS implementation | E2: Prepare travel authorization for ACMAD/DG and ACMAD/GFCS Focal point by ACMAD Secretariat with support of ACMAD-MESA admin&finance, Prepare and present ACMAD-MESA paper on RCC and Climate services for DRR by PM | F2: Priorities of AUC, RECS, AMCOMET strategy | G2: done
A3: 2 | B3: 2nd MESA forum | C3: April 24_28 2017// Dakar-Senegal | D3: Enhance exchanges with policy makers and the public on MESA Achievements From EO to policy | E3: Prepare travel authorization for ACMAD/DG and ACMAD/MESA team ( TA, PM, Communication team (Serges, musanganire) by ACMAD Secretariat, prepare list of invited stakeholders of ACMAD-MESA ( Univ of Dakar ( Gaye or Badiane), Univ of Nairobi ( Prof Muthama), Pan african parliament ( president), AGN (chair), Aftican Dev Bank( Justus), UNISDR regional Office for Africa (XXX), ACMAD Board Chair | F3: Communication materials, list of participants to submit to AUC , preparare communication and logistics | G3: done
A4: 3 | B4: ACMAD-MESA CSC-2 | C4: March 06, 2016// Dakar -Senegal | D4: guide the implementation and sustainability of ACMAD_MESA Services | E4: Prepare invitation letters, follow up with budget, tickets, per diems, hotels, by ACMAD-MESA admin and finance with support of ACMAD Secretariat | F4: follow up logistics and communication details | G4: done
A5: 4 | B5: 2nd MESA forum second preparatory meeting | C5: March07_10, 2017// dakar-Senegal | D5: Finalize the MESA forum programme and related logistics | E5: Prepare travel authorization by ACMAD-MESA admin and finance with support of ACMAD Secretariat | F5: review meeting documents | G5: Underway as of today March 08
A6: 5 | B6: ACMAD-MESACONTR -2 | C6: 13_17 February 2017 or March 20_24 2017// Niamey-Niger | D6: Strengthen technical capacity of ACMAD-MESA target users on climate services | E6: prepare by ACMAD MESA admin and finance with support of ACMAd secretariat | F6: announcement, invitations, logistics for participants, tickets | G6: done
A7: 6 | B7: WMO GFCS/CSIS workshop on CSIS operations and coordination | C7: March 21_24 2017 | D7: initiate Operationalization of the Climate Service toolkit for developing countries | E7: Prepare travel authorization, prepare data&method&tools&products( RCC products)&services , continue positioning ACMAD in WMO GFCS and WCP projects and funding opportunities | F7: Prepare presentation | G7: underway af of March 08
A8: 7 | B8: Meeting on GCF project formulation | C8: January 2017 | D8: discuss ACMAD, AGRHYMET, GFCS coordination in Dakar collaboration on GFCS project for GCF | E8: Prepare the meeting | F8: Prepare the meeting with project document | G8: done
A9: 8 | B9: RA I RAIDEG meeting extended to climate community | C9: March | D9: prepare datasets and submit to RAIDEG | E9: Prepare the meeting | F9: Prepare presentation, prepare travel authorization | G9: underway
A10: 9 | B10: Meeting with Africa Risk View | C10: 2017-01-01 | G10: done
A11: 10 | B11: online meetings of WMO/GFCS/CSIS/ICT
A12: 11 | B12: Meeting with GFCS regional coordinator for the Sahel | C12: 31 January 2017 | D12: discuss GCF projet and ACMAD//AGRHYMET collaboration | E12: read the concept of GCF pr | F12: ACMAD to organize the meeting | H12: USAID
A13: 12 | B13: Consultation meeting with GFCS regional office and OCHA | E13: preoare a short concept and send
A14: 13 | B14: Meeting with AAI follow up of CSC_2
A15: 14 | B15: PRESASS | C15: second week of May 2017 | D15: discuss concept and programme | E15: request AGRHYMET to ask for tranfer funds | H15: MESA/ACMAD
A16: 15 | B16: skype meeting with SMHI on hydromet database | C16: march 16 at 08h30 | D16: discuss hydromet database with SMHI on usaid project | E16: read the hydromet database activities in usaid project before
A17: 2 | B17: 2nd MESA forum | C17: April 24_28 2017// Dakar-Senegal | D17: Enhance exchanges with policy makers and the public on MESA Achievements From EO to policy | E17: Prepare travel authorization for ACMAD/DG and ACMAD/MESA team ( TA, PM, Communication team (Serges, musanganire) by ACMAD Secretariat, prepare list of invited stakeholders of ACMAD-MESA ( Univ of Dakar ( Gaye or Badiane), Univ of Nairobi ( Prof Muthama), Pan african parliament ( president), AGN (chair), Aftican Dev Bank( Justus), UNISDR regional Office for Africa (XXX), ACMAD Board Chair | F17: Communication materials, list of participants to submit to AUC , preparare communication and logistics | G17: done
A18: 16 | B18: MESA 7th PSC | C18: JulY 10 to 14 2017/addis ababa | D18: oversigth and high level guidance for the implementation and sustainability MESA | E18: prepare and attend the meeting | H18: MESA/TAT
A19: 17 | B19: MESA TEM meeting | C19: June 2017 | D19: technical coordination of MESA programme | E19: prepare logistics with AGRHYMET and attend the event | F19: liaise with AGRHYMET MESA | H19: MESA/TAT
A20: 18 | B20: USAID/WIGOS Project meeting | C20: May 1 to 3 2017 / Niamey | D20: Assess status of Observing systems in Niger | E20: attend the meeting | H20: USAID
A21: 19 | B21: USAID project Climate services meeting with NCEP | C21: June 2017 /Niamey | D21: Assess status of RCC products generation and dissemination | E21: prepare and attend the event | H21: USAID
A22: 20 | B22: UNFCCC SBSTA meeting | C22: May 8 to 18 / Boon | D22: provide scientific nad technical advice to UNFCCC | E22: prepare a poster and atend the event | H22: WMO
A23: 21 | B23: 2 climate services trainings | C23: May 27 _31 Cotonou, July 17_21 Yaounde | D23: strenten capacity on climate services for DRR in the Gulf of Guinea and central Africa | E23: organize and attend, report | H23: ACMAD/MESA
A24: 22 | B24: PresAC | C24: Aug 28 _02 Sept | D24: Provide seasonal climate outlook for Central Africa, support operations of RCC in the region | E24: organize and attend, report | H24: ACMAD, WMO
C26: June 14 to 16 2017 | D26: workshop to validate strategic framework for water security and investement priorities for organising and managing water | E26: designate participant, inform MEKROU project and attend the workshop in Nimey ( invitation received on May 22 2017, event at hotel Gawaye) | H26: NBA/MEKROU
C27: May 24 2017 | D27: inform and contact of partners for implementation of Met servise USAID project | E27: attende the meeting at 10 AM on May 24 at DMN | H27: DMN Niger
C28: May 31 2017 | D28: kick off implementation of National Framework for Climate Services | E28: attend the kick off at hotel Sahel at 09h00 | H28: DMN/ Niger
C29: May 23 2017 | D29: sawidra kick off meeting at Agrhymet | E29: attended the sawidra kick off | H29: Agrhymet
C30: MESA PSC 7 July 17 to 19 2017 in addis | D30: steer mesa | E30: prepare and attend the meeting
D31: training on climate services | E31: prepare with wassila | H31: USAID
C32: May 25 2017 Niamey at Agrhymet afternoon | D32: Meeting with with M. Goudou for mesa extension proposal | E32: submit the fdraft proposal to him DDG/ACMAd
C34: Tasks next week starting on Monday 29 may | D34: I did not received comments from ACMAD to my previous email announcing my next mission in Niamey (May 29 to June 06 included). This mission is devoted to the identification of ACMAD and AGRHYMET existing capacities, needs, and expected role in the Framework of the EU-ACP GFCS Climate Services. I hope you received this message and are ready for discussions. I planned to meet AGRHYMET on Monday May 29, and I am available for ACMAD at any moment during this mission.
B35: Skype meeting of ICT CSIS | C35: June 06 2017 afternoon | D35: review implementation of CSIS and way forward | E35: prepare and attend the event
E36: ACMAD attend and propose a Service development plan (done)
C37: NFCS in Niger technical meeting | D37: prepare Tors of NFCS WGs,
C38: October 10_13 2017// Brazzaville Congo | D38: review Central africa RCC statute and regulations, submit for adoption to the ECCAS Conference of Ministers of October 13 | E38: ACMAD to attend, contribute to statute and regulations review
C39: November 06_17 2017/ Boon, Germany | D39: where are we? ( stock taking, status of implementation of the Paris agreement), where do we want to go? ( challenges we should address, actions to take prior to 2020 ) , How to get there? ( patways, action plans, implementation details) | E39: ACMAD to prepare and organize a side event wit AUC having ARC , ACPC, AfDB, NMHSs participation, the MOU between ACMAD and ARC is expected to be signed
B40: GFCS task Team meeting | C40: October 10 to 12 2017// Geneva, Switzerland | D40: formulation of GFCS ACP programme | E40: Fill RFA and take per diem to UNDP after the meeting
B41: AWGDRR and PSC 4 Building resilience | C41: Sept 26 to 28, 32017// Mombassa_Kenya
B42: Vist of WB//WMO team | C42: Octo 10 to 13 2017// Niamey-Niger | D42: formulate further CREWS project | E42: ACMAD to prepare and meet the visitors | H42: no cost
B43: Seminar on long term climate and environment monitoring | C43: Oct 19 and 20 2017 | D43: improve visibility of of obseeving systems and identify collaborative actions between research, development, oparations , decision and policy
B44: SAWIDRA technical and steering meeting | C44: Oct 19 and 20 2017 // Niamey Niger | D44: approve the work plan and budget for sawidra year 1 | E44: prepare and attend the event | H44: no cost
B45: UNESCO conference on improving climate resilience : mobilizing indigeneous and local knowledge | C45: Oct 18 and 20 2017 // Paris _ France | D45: improve dialogue and integration of indiguenous or local knowledge and science based information for climate resilience
B46: GFCS ACP Task Team meeting | C46: Dec 18 to 20 2017 // Addi Abeba | D46: Share responsabilities/activities between continental and regional in GFCS ACP programme
B47: COP 23 | C47: Nov 06 to 17 2017 | D47: reaffirm commitments to UNFCCC , launch concrete actions to combat climate change, find ways to reduce greenhouse gas emissions and protect their societies against climate change and ensure a sustainable future
D48: Countries will discuss the implementation guidelines for the Paris Climate Change Agreement that need to be finalised in 2018, and show determination to capture progress at COP23 as a major outcome.
D49: COP 23 will deliver on Paris agreement implementation guidelines, where we are, where we want to go and how to get there as far as paris agreement is concerned.
B50: GFCS africa team meeting | C50: Nairobi Dec 18 to 20 2017 | D50: coordinate continental and regional responsabbilities and roles in GFCS ACP
D51: 18-20 December 2017

Sheet meetingsactionsimptable
A1: No. | B1: action/recommendation points | C1: responsility/role | D1: timeframe | E1: Status | F1: Coments/observations

Sheet scheduleQ12017
A1: Reference number | B1: Results &activities | C1: Responsability | D1: Year 3 period Q1 2017
D2: Week1 | E2: Week2 | F2: Week3 | G2: week4 | H2: week5 | I2: week6 | J2: week7 | K2: week8 | L2: week9 | M2: week10 | N2: week11 | O2: week12
A3: 1 | B3: Data Access
A4: 1.1 | B4: Mesa station installation Univ Dakar and Nairobi | C4: SDA and AFO (coL)
A5: 1.1.1 | B5: prepare and publish tender for site preparation | C5: PM(L), AFO(S)
A6: 1.1.2 | B6: Collect submissions a, analy and select the optimal provider
A7: 1.1.3 | B7: negotiate and sing contracts
A8: 1.1.4 | B8: Monitor, evaluate implementation
A9: 1.1.5 | B9: Validate outputs, make payments and close contract
A10: 1.2 | B10: MESA station Maintenance (ACMAD, UoN, UoD) | C10: SDA (L) with DIT(S)
A12: 1.3 | B12: Website administration and Maintenance, upgrade, update | C12: SDA(L) with TA(S)
A14: 1.4 | B14: Data Centre/potal Design, development, installation with training for maintenance | C14: TAT contractor(L) SAD and DIT (S)
A17: 1.5 | B17: Data centre/portal operation and maintenance ( data rescue and management) | C17: SDBA(L) and DIT(S)
A19: 2 | B19: Climate Services
A20: 2.1 | B20: Operational production of 2 services | C20: TE and STEs DSF and CCA
B21: Initiation of the Integration of the two services in the MESA station with catalogues of products/services based on user Feedback | C21: SDA, TE, TA, PM
B22: provision of service interpretation support with Verification products , collection and analysis of uses feedbacks | C22: STE DSF, Policy liaison Offocer
B23: Further develop DSF with copernicus data | C23: TE, STE, PM
B24: Prepare/update user guide including feedback from training events | C24: STE, PM
A25: 3 | B25: Collaboration
B26: Signature of MoU with SADC-CSC or AGRHYMET | C26: PM, TA
B27: Organization of events with co-beneficiaries and partners at ( COP22, 2nd MESA forum, CONTr_02, PRESAGG, PRESASS, PRESANORD, PRESAC, SWIOCOF...)
B28: Participation and contribution to events of partners ( Continental Bulletins workshops, RCOFs organized by co-beneficiaries …)
B29: Organization of joint planning meetings (EUMETSAT, JRC, DWD, ARC, WMO) and other partners
A33: 4 | B33: Policy/political frameworks
B34: Preparation or collection of speeches, statements and reports of stakeholders mentioning policies, plans, decisions made with climate services
B35: Preparation , organization and reporting on policy dialogue, roundtable, side events, exhibitions at COP 22, CSC-2, CONTR_02, MESA forum
B36: Preparation and organization and reporting on targeted brief to CSC-2 and other policy bodies of AU
A37: 5 | B37: Capacity building
B38: Further develop or consolidate training materials.
B39: Planning, organization and reporting CSC-2 and second round of Reg Tr
B40: Design and develop distance education packages
B41: Prepare and implement on the job training for focal points selected
A42: 6 | B42: Management
A43: 6.1 | B43: Recruitment and staff management ( CCA and DSF STE on training, ) | C43: PM(L), TA(S)
A44: 6.2 | B44: Administration, financial management and training of co-applicants on EDF rules ( account verification , request for prefinancing, financial reporting, administration, accounting | C44: AFO(L), PM and TA (S), DG(S)
A45: 6.3 | B45: Development of networks and partnershipswith RCOFs, Steering, planning, technical meetings | C45: PM(L), TA(S)
A46: 6.3.1 | B46: inception phase for Sahel resilience project (usaid) | C46: PM
A47: 6.3.2 | B47: Last financial reporting for Vigirisk ( ACMAD may reimburse the AMA balance by end on 2017 using MESA indirect cost) | C47: PM and ACMAD SAF
A48: 6.3.3 | B48: Formulation of GCF project with GFCS regional office | C48: PM
A49: 6.3.4 | B49: Formulation of Data rescue project with partners( WMO,…) | C49: PM
A50: 6.3.5 | B50: formulation&implementation of work plan wth ARC, signature of MoU with ARC | C50: PM and TA
A51: 6.3.6 | B51: formulation and implementation of GMES&Africa programme | C51: PM
A52: 6.3.7 | B52: formulation of GFCS&ACP programme | C52: PM and TA
B54: Prepare, supervise, review, sign reports and timesheets | C54: PM
B55: Prepare and use visibility and communication plan &materials at CSC-2, Mesa forum, CONTr_02 and Reg Trs | C55: CO(L) with PM and TA(S) , inputs from other team members

Sheet event&meetings2018 (2)
B1: Event/Mission Title | C1: Dates/location | D1: Objective | E1: actions required | F1: comments | G1: status | H1: Funding
A2: 1 | B2: GFCS International Climate Training Workshop Sahel project | C2: Ispra, JRC Italy, 16 to 20 January 2O18 | D2: _ Define and specify the Climate Service Station | E2: Prepare the presentations on ACMAD RCC and ACMAD MESA products for DRR for discussions | H2: EUMETSAT
A3: 2 | B3: Technical Visit to JRC | C3: ISPRA, Italy May 2018 | D3: _ Detail development of the CSS | E3: prepare and participate the visit | H3: JRC
A4: 3 | B4: Mission to ECMWF | C4: Reading , May 2018 | D4: _Test and Review the Climate Data Store | E4: Prepare and participate to the event | H4: ECMWF
A5: 4 | B5: Training on NFCS | C5: Niamey Niger Feb 13 to 15 2018 | D5: _train national experts on regional products and establishment/implementation of NFCS | E5: Organize the event | H5: WMO/USAID
B6: Africa-Arab Regional Platform and High-Level Meeting on Disaster Risk Reduction: 7th Africa Regional Platform & 6th High-Level Meeting on Disaster Risk Reduction | 26-30 October 2018 | Tunis, Tunisia
A7: 5 | B7: AWGDRR session | C7: Yaounde Cameroun week of sept 4 2018 | D7: take stock of progress on DRR in Africa, steer future implementation of DRR programmes for resilience in Africa | E7: Prepare a presentation on the state of climate and update emphasizing hazards outlooks, potential impacts and preparation measures | H7: AUC

Sheet Sheet1

Sheet adminfindocschecklist
A1: FINANCIAL MANAGEMENT TOOLKIT FOR RECIPIENTS OF EU FUNDS FOR EXTERNAL ACTIONS
A2: DOCUMENTATION CHECKLIST
D3: Present | E3: Absent | F3: Not Applicable | G3: Comments / Notes
A5: A. | B5: PROCUREMENT & GRANTS
A6: A1 | B6: Tender dossier, call for proposal documents, technical specifications, instructions to tenderers, terms of reference and other similar documents
A7: A2 | B7: Copy of publications made
A8: A3 | B8: Copy of invitations sent to participants, including proof of dispatch / acknowledgement of receipt
A9: A4 | B9: If additional information is sent to the participants concerning the tender, copy of that additional information, together with the proof of simultaneous dispatch to all participants
A10: A5 | B10: Technical and financial offers received from all tender participants, including unsuccessful tenderers
A11: A6 | B11: Pro-forma invoice - Note (1)
A12: A7 | B12: Signed tender opening report and annexed checklist
A13: A8 | B13: Signed evaluation report and annexed checklist
A14: A9 | B14: Declarations of objectivity and confidentiality signed by the persons preparing the tender dossier, and declarations of impartiality and confidentiality signed by the members of the tender opening and evaluation committees
A15: A10 | B15: Contract award proposal - Note (2)
A16: A11 | B16: Letter of approval of the award of the contract by the Head of EU Delegation - Note (2)
A17: A12 | B17: Letters of notification of the tender results to the successful and unsuccesful tenderers.
A19: B. | B19: CONTRACTING
A20: B1 | B20: Supply, Service or Works contract signed with the supplier/service provider/contractor.
A21: B2 | B21: Grant contract signed with the Recipient - Note (3)
A22: B3 | B22: Copy of bank and other guarantees, where contractually required
A24: C. | B24: IMPLEMENTATION
A25: C1 | B25: Delivery documents, preferably originating from a third party (for example, supplier's delivery note, transportation documents or customs documents in case of imported goods)
A26: C2 | B26: If rules of origin apply to the action, official certificate of origin of the supplies
A27: C3 | B27: Provisional / final acceptance reports for supplies
A28: C4 | B28: Provisional / final acceptance certificates for works
A29: C5 | B29: Report on the services provided, duly approved and dated
A30: C6 | B30: Grant implementation report, duly approved and dated - Note (3)
A31: C7 | B31: Supplier's official invoice(s), established following the laws and rules of the country of the supplier - Note (4)
A32: C8 | B32: Credit note(s), if applicable - Note (5)
A33: C9 | B33: Do the invoices/credit notes obtained show at least the following information:
B34: - full official name and seat address of the supplier, together with his contact details (e.g. telephone, fax, email, website)?
B35: - official registration number of the supplier in the country were he is established (e.g. commercial registry number, VAT number)?
B36: - bank account number of the supplier?
B37: - identification of the Entity to which the invoice is addressed?
B38: - identification of the project or programme to which the invoice relates?
B39: - detailed description (list) of the items sold and unit prices?
B40: - in case the invoice relates to certain specifically identifiable items, the unique identification numbers of these items? - Note (6)
B41: - total amount to be paid with an indication of the currency, and with the amount of VAT or other sales taxes separately disclosed?
A43: D. | B43: CASH AND BANK DOCUMENTS
A44: D1 | B44: Official bank statements issued by the Bank for all receipt and payments
A45: D2 | B45: Petty cash book and related petty cash vouchers
A47: E. | B47: PAYMENT DOCUMENTS
A48: E1 | B48: Payment requests received from the supplier - Note (7)
A49: E2 | B49: Bank statements, showing the payee, the account number and the amount paid
A50: E3 | B50: Copies of signed cheques (in case of payment by cheques)
A51: E4 | B51: In case of payment in cash, payment voucher, signed by the payee, acknowledging the receipt of the funds
A53: F. | B53: PERSONNEL EXPENSES
A54: F1 | B54: Personnel register, listing the staff together with their relevant data (identification data of the person, address, family status, function, title, etc)
A55: F2 | B55: Signed employment / work contracts and amendments thereto
A56: F3 | B56: Payroll calculation listing for each period of calculation of pay
A57: F4 | B57: Payroll fiches (established for tax purposes as well as for internal purposes)
A58: F5 | B58: Copies of returns to the relevant authorities in respect of social security contributions, social insurances, payroll witholding tax deductions, and, in general, any other returns that must be submitted to official authorities of the country in connection with compulsory payroll-related payments
A59: F6 | B59: Proof of payment of the net salaries to the employees
A60: F7 | B60: Proof of payment of all payroll-related taxes and social security contributions to the relevant national authorities
A61: F8 | B61: Vacation and leave statements
A62: F9 | B62: In the event of termination of the employment contract, documentation regarding any dismissal allowance claims, evidence that these are legal and not excessive, and proof of their payment.
A63: F10 | B63: In the event of payments of costs of personnel seconded from the beneficiary country or from other entities:
B64: - list of the personnel concerned
B65: - copy of the agreements regarding the payments made
B66: - calculation of the amounts paid
B67: - proof of payment
A69: G. | B69: REIMBURSABLE TRAVEL AND MISSION EXPENSES
A70: G1 | B70: Mission order approved by the person authorised to approve the mission, with an indication of the date/place of mission and of the person sent on mission - Note (8) | D70: Yes
A71: G2 | B71: Approved mission report - Note (9) | D71: Yes
A72: G3 | B72: Approved expense report - Note (10) | D72: N/A
A73: G4 | B73: Transport invoices | D73: N/A
A74: G5 | B74: Ticket stub or tickets for the means of transport - Note (12) | D74: Yes
A75: G6 | B75: Hotel bills and bills for other expenses at the place of mission - Note 13) | D75: N/A
A76: G7 | B76: Signed training attendance lists - Note (14) | D76: N/A
A78: H. | B78: ASSETS
A79: H1 | B79: Register of investment assets | G79: to be done
A80: H2 | B80: Inventory lists and permanent inventory records | G80: to be done
A81: H3 | B81: Approved requests for disbursements of goods from the permanent inventory records
A82: H4 | B82: List of vehicles whose running costs are paid by the project | G82: to be done
A83: H5 | B83: Vehicle log books | D83: yes
A84: H6 | B84: Register of leased assets | D84: N/A
A85: H7 | B85: Minutes of transfer of ownership of equipment to the beneficiary country | D85: N/A | G85: at end of project
A87: I. | B87: ACCOUNTING
A88: I1 | B88: General ledger accounts and trial balances | D88: Yes
A89: I2 | B89: All accounting reconciliations, for example:
B90: - bank reconciliations | D90: yes
B91: - petty cash count forms and reconciliations
B92: - physical inventory lists | D92: yes
B93: - analysis and reconciliation of each asset or liability account, showing the analysis of the content of the account
A94: I3 | B94: Financial reports from project partners or other programme implementing entities
A96: J. | B96: OTHER
A97: J1 | B97: Evidence that the EU visibility obligation is respected (for example, photos of the vehicles showing the EU logo, photos of the premises showing EU display panels, etc) | D97: yes
A98: J2 | B98: If the project has pending litigations, legal file per litigation case containing the legal letters, the court decisions and other related pertinent documentation. | D98: N/A
D101: Prepared by: | F101: Name, Position, Signature, Date
D103: Approved by: | F103: Name, Position, Signature, Date | H103: Dec 28, 2016
A108: NOTES
A109: (1) | B109: In case of certain supply procurements, it is frequent practice that the supplier submits its offer under the form of a pro-forma invoice
A110: (2) | B110: For cases where the project arrangements require the ex-ante approval of the contract award by the Head of EU Delegation
A111: (3) | B111: In case of sub-grants within the project or programme
A112: (4) | B112: Please note that this is the official invoice and not the pro-forma invoice (a pro-forma "invoice" is not an official invoice, it is only a price offer)
A113: (5) | B113: A credit note is an official invoice with a negative amount. Credit notes are generally used in case a correction needs to be made to an amount already invoiced.
A114: (6) | B114: For example, vehicle serial number in case of the purchase of a vehicle, or vehicle plate registration number in case of gasoline refil of the vehicle
A115: (7) | B115: In case no invoice is established, for example payment requests for advances
A116: (8) | B116: A mission order is a document authorising a staff member to carry out a specific task during a fixed duration and at a precise location that is different from his or her normal place of work. The purpose of a mission order is to evidence that the mission was duly authorised and is in the interest of the project.
A117: (9) | B117: A mission report is a document prepared by the person who carried the mission, explaining the mission accomplishments. The purpose of a mission report is to evidence that the work has actually taken place and is in the interest of the project.
A118: (10) | B118: An expense report is a statement prepared by the person who carried the mission, detailing his or her claim in respect of the mission expenses to be reimbursed to him or her.
A119: (11) | B119: These documents prove the actual travel in case of travel by public transport other than by air (e.g. train or bus)
A120: (12) | B120: Hotel bills and bills for other costs at the place of mission are not necessary to prove the costs if the mission allowances are reimbursed by means of fixed per diem allowances. It may however be useful to retain them, as they can be used to prove the presence of the person at the place of mission during the foreseen dates.
A121: (13) | B121: Signed attendance lists can be useful to prove the presence of the attendees to a training session. They can be used to prove costs reimbursed to training attendees. They can also be useful to prove that the training has actually taken place.

Sheet Checklistfinancereport
A1: FINANCIAL MANAGEMENT TOOLKIT FOR RECIPIENTS OF EU FUNDS FOR EXTERNAL ACTIONS
A2: FINANCIAL REPORTING CHECKLIST
D3: Yes | E3: No | F3: N/A | G3: Comments / Notes
A5: A. | B5: FORM OF THE FINANCIAL REPORT
A6: A1 | B6: Is the financial report prepared in the currency specified in the Contractual Conditions? - Note (a) | D6: Yes
A7: A2 | B7: Is the financial report presented following the same classifications as those of the agreed budget? | D7: Yes
A8: A3 | B8: Does the financial report present a budget-to-actual comparison? Are the budget numbers presented in the financial report the same as those in the agreed budget? | D8: Yes
A9: A4 | B9: If you have made budgetary reclassifications, are they in accordance with the Contractual Conditions of the project? | D9: Yes | G9: Budget Modification approved by Contracting Authority and endorsed by the EUD
A10: A5 | B10: Is the period covered by the financial report the same as that foreseen in the Contract signed in respect of the project? | D10: Yes
A11: A6 | B11: Does the financial report cover all the expenses of the project, inclusive of those co-financed by parties other than the EU? | D11: no | G11: Co-financing to be introduced in year 3 starting with Q4 2016
A12: A7 | B12: For Programme Estimates only : does your financial report disclose the expenditure by source of funds that has financed them? | D12: N/A
A13: A8 | B13: If the project includes contributions-in-kind, does your financial report disclose the actual value of these contributions separately from the actual project expenses? | D13: N/A
A14: A9 | B14: Have you checked the Contractual Conditions of the project to verify if the use of a specific reporting template is compulsory? | D14: Yes
A15: A10 | B15: In such case, have you used it? | D15: Yes
A17: B. | B17: CONTENT OF THE FINANCIAL REPORT
A18: B1 | B18: Does the financial report agree, without addition, omission or adjustment, with your accounting records? | D18: Yes
A19: B2 | B19: If your financial report is prepared in a currency different from the functional currency in which your accounting records are kept, has the conversion been made in accordance with the currency rules foreseen in the Contractual Conditions of the project? For the most frequent types of Contractual Conditions, these are: | D19: Yes
B20: - for grants, at the arithmetical average of the monthly inforeuro rates during the period which is covered by the financial report | D20: Yes
B21: - for projects managed through programme estimates, at the rate applied by the bank for the conversion of the funds | D21: N/A
B22: - for service contracts, at the inforeuro rate of the month during which the invoice is established | D22: N/A
A23: B3 | B23: Does your financial report disclose the amount of interest produced by the funds prefinancing advanced by the Contracting Authority? | D23: No | G23: The checking account does not produce interest in Niger. A letter should be sent to EUD on the intrest following their request
A24: B4 | B24: Does the financial report disclose any other project revenues? (for example, tender fees, non-reimbursable bidding guarantees, asset sales, etc) | D24: N/A
A25: B5 | B25: If the financial report is prepared with the help of an excel template, did you double-check all formulas to ensure there is no clerical error? | D25: yes
A26: B6 | B26: Did you prepare a cash flow reconciliation of the project's funds movements, covering the same period as that covered by your financial report? - Note (b) | D26: yes | G26: verify that cash flow reconciliation for year 2 is available
A27: B7 | B27: If, as at the date of the financial report, the project has assets or liabilities, are they disclosed in an annex to the financial report? (for example by means of a balance sheet or by means of an off-balance sheet disclosure in the case of memo accounts) | D27: yes | G27: Need verification
A29: C. | B29: OTHER
A30: C1 | B30: Is each accounting entry made in the bookkeeping records of the project backed-up by proper supporting documents? Please refer to the Documentation Checklist which is annexed to Module 2.
A31: C2 | B31: For each item of expenditure, did you check that:
B32: - the expenditure is foreseen in the (contractually) agreed budget of the action
B33: - the expenditure is necessary for the implementation of the action
B34: - the expenditure item has been incurred during the implementation period of the action, which is indicated in the Contract - Note (c)
B35: - the expenditure has been recorded in the accounting records of your organisation
B36: - has not already been financed under a framework other than that which finances the action concerned (no double financing)
B37: - if expressed in a currency different from the functional currency of the action, has the currency conversion been made following the currency rules specified in the Contractual Conditions of the project? (see also question B2)
A38: C3 | B38: Have you checked that your actual expenses, per budgetary line, are not in overrun as compared to the agreed budget? | D38: Yes
A39: C4 | B39: Have you checked that every item of expenditure you charge in the financial report does not include VAT or taxes, except if the following conditions are both met: | D39: Yes
B40: - you can show that you are unable to reclaim these taxes from the local government concerned, and
B41: - the financing instrument and regulation applicable to the action authorises the coverage of taxes.
A42: C5 | B42: If you are unsure whether the financing instrument and regulation applicable to the action authorises the coverage of taxes, have you contacted the Contracting Authority or the relevant EU Delegation?
A43: C6 | B43: Have you checked that every item of expenditure you charge in the financial report does not fall into an expense category specified as ineligible according to the Contractual Conditions of the project or programme?
A44: C7 | B44: Have all your intermediate and final financial reports been submitted to the Contracting Authority within the time limits foreseen in the Contractual Conditions of the project? | D44: yes
D46: Prepared by : | F46: Name, Position, Signature, Date
D48: Approved by : | F48: Name, Position, Signature, Date
A51: Notes
A52: a. | B52: This is the currency foreseen in the agreement signed with the Contracting Authority in respect of the project. It should also be the same currency as that in which the agreed budget is denominated.
A53: b. | B53: Please see the cash flow reconciliation template presented in annex to Module 6.
A54: c. | B54: Except of costs relating to final reports, expenditure verification, audit and evaluation of the action, which may be incurred subsequently.

Sheet scheduleQ12018
A1: Reference number | B1: Results &activities | C1: Responsability | D1: Year 20178 period Q1 2018
D2: Week1 | E2: Week2 | F2: Week3 | G2: week4 | H2: week5 | I2: week6 | J2: week7 | K2: week8 | L2: week9 | M2: week10 | N2: week11 | O2: week12
A3: 1 | B3: Data Access
A4: 1.1 | B4: Mesa station installation Univ Dakar and Nairobi | C4: SDA and AFO (coL)
A5: 1.1.1 | B5: prepare and publish tender for site preparation | C5: PM(L), AFO(S)
A6: 1.1.2 | B6: Collect submissions a, analy and select the optimal provider
A7: 1.1.3 | B7: negotiate and sing contracts
A8: 1.1.4 | B8: Monitor, evaluate implementation
A9: 1.1.5 | B9: Validate outputs, make payments and close contract
A10: 1.2 | B10: MESA station Maintenance (ACMAD, UoN, UoD) | C10: SDA (L) with DIT(S)
A12: 1.3 | B12: Website administration and Maintenance, upgrade, update | C12: SDA(L) with TA(S)
A14: 1.4 | B14: Data Centre/potal Design, development, installation with training for maintenance | C14: TAT contractor(L) SAD and DIT (S)
A17: 1.5 | B17: Data centre/portal operation and maintenance ( data rescue and management) | C17: SDBA(L) and DIT(S)
A19: 2 | B19: Climate Services
A20: 2.1 | B20: Operational production of 2 services | C20: TE and STEs DSF and CCA
B21: Initiation of the Integration of the two services in the MESA station with catalogues of products/services based on user Feedback | C21: SDA, TE, TA, PM
B22: provision of service interpretation support with Verification products , collection and analysis of uses feedbacks | C22: STE DSF, Policy liaison Offocer
B23: Further develop DSF with copernicus data | C23: TE, STE, PM
B24: Prepare/update user guide including feedback from training events | C24: STE, PM
A25: 3 | B25: Collaboration
B26: Signature of MoU with SADC-CSC or AGRHYMET | C26: PM, TA
B27: Organization of events with co-beneficiaries and partners at ( COP22, 2nd MESA forum, CONTr_02, PRESAGG, PRESASS, PRESANORD, PRESAC, SWIOCOF...)
B28: Participation and contribution to events of partners ( Continental Bulletins workshops, RCOFs organized by co-beneficiaries …)
B29: Organization of joint planning meetings (EUMETSAT, JRC, DWD, ARC, WMO) and other partners
A33: 4 | B33: Policy/political frameworks
B34: Preparation or collection of speeches, statements and reports of stakeholders mentioning policies, plans, decisions made with climate services
B35: Preparation , organization and reporting on policy dialogue, roundtable, side events, exhibitions at COP 22, CSC-2, CONTR_02, MESA forum
B36: Preparation and organization and reporting on targeted brief to CSC-2 and other policy bodies of AU
A37: 5 | B37: Capacity building
B38: Further develop or consolidate training materials.
B39: Planning, organization and reporting CSC-2 and second round of Reg Tr
B40: Design and develop distance education packages
B41: Prepare and implement on the job training for focal points selected
A42: 6 | B42: Management
A43: 6.1 | B43: Recruitment and staff management ( CCA and DSF STE on training, ) | C43: PM(L), TA(S)
A44: 6.2 | B44: Administration, financial management and training of co-applicants on EDF rules ( account verification , request for prefinancing, financial reporting, administration, accounting | C44: AFO(L), PM and TA (S), DG(S)
A45: 6.3 | B45: Development of networks and partnershipswith RCOFs, Steering, planning, technical meetings | C45: PM(L), TA(S)
A46: 6.3.1 | B46: inception phase for Sahel resilience project (usaid) | C46: PM
A47: 6.3.2 | B47: Last financial reporting for Vigirisk ( ACMAD may reimburse the AMA balance by end on 2017 using MESA indirect cost) | C47: PM and ACMAD SAF
A48: 6.3.3 | B48: Formulation of GCF project with GFCS regional office | C48: PM
A49: 6.3.4 | B49: Formulation of Data rescue project with partners( WMO,…) | C49: PM
A50: 6.3.5 | B50: formulation&implementation of work plan wth ARC, signature of MoU with ARC | C50: PM and TA
A51: 6.3.6 | B51: formulation and implementation of GMES&Africa programme | C51: PM
A52: 6.3.7 | B52: formulation of GFCS&ACP programme | C52: PM and TA
B54: Prepare, supervise, review, sign reports and timesheets | C54: PM
B55: Prepare and use visibility and communication plan &materials at CSC-2, Mesa forum, CONTr_02 and Reg Trs | C55: CO(L) with PM and TA(S) , inputs from other team members
